Department family,Entity,Date,Expense type,Expense area,Supplier,Transaction number,Amount,VAT registration number
"Department for Science, Innovation and Technology",Intellectual Property Office,12/12/2023,Travel & Subsistence,Business & International Policy Directorate,Personal expenses,OS000000119,527.22,Not Applicable
"Department for Science, Innovation and Technology",Intellectual Property Office,06/12/2023,Pay Costs,PDTM Directorate,Acorn Recruitment Ltd,1042837,778.33,Not Applicable
"Department for Science, Innovation and Technology",Intellectual Property Office,13/12/2023,Pay Costs,PDTM Directorate,Acorn Recruitment Ltd,1043335,778.33,Not Applicable
"Department for Science, Innovation and Technology",Intellectual Property Office,13/12/2023,Pay Costs,PDTM Directorate,Acorn Recruitment Ltd,1043336,696.19,Not Applicable
"Department for Science, Innovation and Technology",Intellectual Property Office,22/12/2023,Pay Costs,PDTM Directorate,Acorn Recruitment Ltd,1043785,778.33,Not Applicable
"Department for Science, Innovation and Technology",Intellectual Property Office,29/12/2023,Pay Costs,PDTM Directorate,Acorn Recruitment Ltd,1043786,598.21,Not Applicable
"Department for Science, Innovation and Technology",Intellectual Property Office,05/12/2023,Office Supplies,"Rights, Policy & Enforcement Directorate",Banner Group Limited,AC84425A,"1,250.59",Not Applicable
"Department for Science, Innovation and Technology",Intellectual Property Office,11/12/2023,Information Technology,"Rights, Policy & Enforcement Directorate",Capital Law LLP,70013259,"2,693.40",Not Applicable
"Department for Science, Innovation and Technology",Intellectual Property Office,08/12/2023,Staff Costs,"Rights, Policy & Enforcement Directorate",Computeraid Ltd,22885,"2,964.00",Not Applicable
"Department for Science, Innovation and Technology",Intellectual Property Office,15/12/2023,Marketing & Publicity,PDTM Directorate,CPD Certification Service Ltd,21032,"2,574.00",Not Applicable
"Department for Science, Innovation and Technology",Intellectual Property Office,05/12/2023,Staff Costs,Strategy Directorate,Cranfield University,1654731,"1,800.00",Not Applicable
"Department for Science, Innovation and Technology",Intellectual Property Office,22/12/2023,Supporting UK Business,PDTM Directorate,Dehns,555822,"2,500.00",Not Applicable
"Department for Science, Innovation and Technology",Intellectual Property Office,12/12/2023,Postage & Delivery Costs,"Rights, Policy & Enforcement Directorate",DHL International (UK) Ltd,BRSR007714492,"1,422.18",Not Applicable
"Department for Science, Innovation and Technology",Intellectual Property Office,06/12/2023,Postage & Delivery Costs,"Rights, Policy & Enforcement Directorate",DHL International (UK) Ltd,BRSR007824949,"5,658.63",Not Applicable
"Department for Science, Innovation and Technology",Intellectual Property Office,13/12/2023,Accommodation,"Rights, Policy & Enforcement Directorate",Pro Investments Limited,202815,"13,054.96",Not Applicable
"Department for Science, Innovation and Technology",Intellectual Property Office,13/12/2023,Accommodation,"Rights, Policy & Enforcement Directorate",Pro Investments Limited,202816,"2,246.18",Not Applicable
"Department for Science, Innovation and Technology",Intellectual Property Office,05/12/2023,Supporting UK Business,PDTM Directorate,Greaves Brewster LLP,9819940,"2,500.00",Not Applicable
"Department for Science, Innovation and Technology",Intellectual Property Office,04/12/2023,Pay Costs,DDaT Directorate,Hays Specialist Recruitment,1013326861,"4,485.54",Not Applicable
"Department for Science, Innovation and Technology",Intellectual Property Office,08/12/2023,Pay Costs,DDaT Directorate,Hays Specialist Recruitment,1013334576,"4,485.54",Not Applicable
"Department for Science, Innovation and Technology",Intellectual Property Office,08/12/2023,Pay Costs,DDaT Directorate,Hays Specialist Recruitment,1013338909,"4,485.54",Not Applicable
"Department for Science, Innovation and Technology",Intellectual Property Office,22/12/2023,Pay Costs,"Rights, Policy & Enforcement Directorate",Home  Office,2646859,"5,165.93",Not Applicable
"Department for Science, Innovation and Technology",Intellectual Property Office,22/12/2023,Pay Costs,"Rights, Policy & Enforcement Directorate",Home  Office,2646864,"4,661.07",Not Applicable
"Department for Science, Innovation and Technology",Intellectual Property Office,04/12/2023,Travel & Subsistence,Finance Directorate,HRG UK,259062120,"-2,988.75",Not Applicable
"Department for Science, Innovation and Technology",Intellectual Property Office,08/12/2023,Legal & Hearings,PDTM Directorate,Marten Walsh Cherer Ltd,129738,"9,516.30",Not Applicable
"Department for Science, Innovation and Technology",Intellectual Property Office,19/12/2023,Legal & Hearings,PDTM Directorate,Marten Walsh Cherer Ltd,129837,"5,953.08",Not Applicable
"Department for Science, Innovation and Technology",Intellectual Property Office,22/12/2023,Legal & Hearings,PDTM Directorate,Marten Walsh Cherer Ltd,130561,"5,296.01",Not Applicable
"Department for Science, Innovation and Technology",Intellectual Property Office,22/12/2023,Legal & Hearings,PDTM Directorate,Marten Walsh Cherer Ltd,130569,"3,418.37",Not Applicable
"Department for Science, Innovation and Technology",Intellectual Property Office,22/12/2023,Legal & Hearings,PDTM Directorate,Marten Walsh Cherer Ltd,130570,"4,409.44",Not Applicable
"Department for Science, Innovation and Technology",Intellectual Property Office,13/12/2023,Staff Costs,"Rights, Policy & Enforcement Directorate",MyCSP limited,20820,"1,584.00",Not Applicable
"Department for Science, Innovation and Technology",Intellectual Property Office,15/12/2023,Staff Costs,"Rights, Policy & Enforcement Directorate",MyCSP limited,20881,896.40,Not Applicable
"Department for Science, Innovation and Technology",Intellectual Property Office,12/12/2023,Information Technology,DDaT Directorate,Phoenix Software Ltd,OP/I991066,"7,689.60",Not Applicable
"Department for Science, Innovation and Technology",Intellectual Property Office,20/12/2023,Information Technology,DDaT Directorate,Phoenix Software Ltd,OP/I992178,"260,038.28",Not Applicable
"Department for Science, Innovation and Technology",Intellectual Property Office,22/12/2023,Information Technology,DDaT Directorate,Phoenix Software Ltd,OP/I992559,"2,800.00",Not Applicable
"Department for Science, Innovation and Technology",Intellectual Property Office,13/12/2023,Supporting UK Business,PDTM Directorate,Potter Clarkson LLP,1040288,"2,500.00",Not Applicable
"Department for Science, Innovation and Technology",Intellectual Property Office,13/12/2023,Supporting UK Business,PDTM Directorate,Potter Clarkson LLP,1040474,"2,500.00",Not Applicable
"Department for Science, Innovation and Technology",Intellectual Property Office,12/12/2023,Staff Costs,DDaT Directorate,QA Ltd,QA-SIN-000374660,"1,898.10",Not Applicable
"Department for Science, Innovation and Technology",Intellectual Property Office,12/12/2023,Staff Costs,DDaT Directorate,QA Ltd,QA-SIN-000374661,"1,886.10",Not Applicable
"Department for Science, Innovation and Technology",Intellectual Property Office,29/12/2023,Information Technology,DDaT Directorate,Red Gate Software Limited,INV00149182,"3,685.82",Not Applicable
"Department for Science, Innovation and Technology",Intellectual Property Office,05/12/2023,Postage & Delivery Costs,"Rights, Policy & Enforcement Directorate",Royal Mail,9069044625,"3,838.91",Not Applicable
"Department for Science, Innovation and Technology",Intellectual Property Office,05/12/2023,Postage & Delivery Costs,"Rights, Policy & Enforcement Directorate",Royal Mail,9069104101,"3,510.71",Not Applicable
"Department for Science, Innovation and Technology",Intellectual Property Office,20/12/2023,Postage & Delivery Costs,"Rights, Policy & Enforcement Directorate",Royal Mail,9069160319,"3,119.00",Not Applicable
"Department for Science, Innovation and Technology",Intellectual Property Office,20/12/2023,Postage & Delivery Costs,"Rights, Policy & Enforcement Directorate",Royal Mail,9069214155,"3,491.19",Not Applicable
"Department for Science, Innovation and Technology",Intellectual Property Office,18/12/2023,Accommodation,"Rights, Policy & Enforcement Directorate",Senator International Ltd,S01819342,964.69,Not Applicable
"Department for Science, Innovation and Technology",Intellectual Property Office,20/12/2023,Accommodation,"Rights, Policy & Enforcement Directorate",Senator International Ltd,SILINV046578,"69,040.80",Not Applicable
"Department for Science, Innovation and Technology",Intellectual Property Office,15/12/2023,Staff Costs,"Rights, Policy & Enforcement Directorate",University of  South Wales,INV0003199,"36,720.00",Not Applicable
"Department for Science, Innovation and Technology",Intellectual Property Office,22/12/2023,Staff Costs,"Rights, Policy & Enforcement Directorate",University of  South Wales,INV0003200,"18,360.00",Not Applicable
"Department for Science, Innovation and Technology",Intellectual Property Office,15/12/2023,Staff Costs,"Rights, Policy & Enforcement Directorate",University of  South Wales,INV0003201,"3,006.00",Not Applicable
"Department for Science, Innovation and Technology",Intellectual Property Office,08/12/2023,Accommodation,"Rights, Policy & Enforcement Directorate",Wastesavers Ltd,22654,535.91,Not Applicable
"Department for Science, Innovation and Technology",Intellectual Property Office,05/12/2023,Supporting UK Business,PDTM Directorate,Withers &  Rogers LLP,6879917,"2,500.00",Not Applicable
"Department for Science, Innovation and Technology",Intellectual Property Office,13/12/2023,Supporting UK Business,PDTM Directorate,Withers &  Rogers LLP,6880531,"2,500.00",Not Applicable
"Department for Science, Innovation and Technology",Intellectual Property Office,05/12/2023,Supporting UK Business,PDTM Directorate,Withers &  Rogers LLP,6880652,"2,500.00",Not Applicable
"Department for Science, Innovation and Technology",Intellectual Property Office,15/12/2023,Office Supplies,"Rights, Policy & Enforcement Directorate",Antalis UK Ltd,6700296831,-625.11,Not Applicable
"Department for Science, Innovation and Technology",Intellectual Property Office,15/12/2023,Office Supplies,"Rights, Policy & Enforcement Directorate",Antalis UK Ltd,6700321976,"5,981.95",Not Applicable
"Department for Science, Innovation and Technology",Intellectual Property Office,12/12/2023,Information Technology,DDaT Directorate,Computacenter (UK) ltd,3884251162,"10,522.97",Not Applicable
"Department for Science, Innovation and Technology",Intellectual Property Office,05/12/2023,Supporting UK Business,PDTM Directorate,Mewburn  Ellis LLP,300942,"2,500.00",Not Applicable
"Department for Science, Innovation and Technology",Intellectual Property Office,05/12/2023,Supporting UK Business,PDTM Directorate,Venner Shipley  LLP,473067,"5,000.00",Not Applicable
"Department for Science, Innovation and Technology",Intellectual Property Office,11/12/2023,Telecoms,DDaT Directorate,Vodafone Corporate Ltd,105010881,"3,735.31",Not Applicable
"Department for Science, Innovation and Technology",Intellectual Property Office,05/12/2023,Postage & Delivery Costs,"Rights, Policy & Enforcement Directorate",RICO LOGISTICS LTD,SINRLLFS00446686,749.81,Not Applicable
"Department for Science, Innovation and Technology",Intellectual Property Office,12/12/2023,Postage & Delivery Costs,"Rights, Policy & Enforcement Directorate",RICO LOGISTICS LTD,SINRLLFS00447726,"1,862.59",Not Applicable
"Department for Science, Innovation and Technology",Intellectual Property Office,20/12/2023,Postage & Delivery Costs,"Rights, Policy & Enforcement Directorate",RICO LOGISTICS LTD,SINRLLFS00448913,"1,179.26",Not Applicable
"Department for Science, Innovation and Technology",Intellectual Property Office,13/12/2023,Telecoms,DDaT Directorate,VIRGIN MEDIA,917218DEC23,537.40,Not Applicable
"Department for Science, Innovation and Technology",Intellectual Property Office,19/12/2023,Information Technology,DDaT Directorate,Open Connections Solutions Limited,340198,"1,080.00",Not Applicable
"Department for Science, Innovation and Technology",Intellectual Property Office,19/12/2023,Information Technology,DDaT Directorate,Open Connections Solutions Limited,340204,"1,620.00",Not Applicable
"Department for Science, Innovation and Technology",Intellectual Property Office,15/12/2023,Information Technology,DDaT Directorate,boxxe Ltd,INV0032596,"557,878.30",Not Applicable
"Department for Science, Innovation and Technology",Intellectual Property Office,05/12/2023,Supporting UK Business,PDTM Directorate,LAWRIE INTELLECTUAL PROPERTY,127543,"2,500.00",Not Applicable
"Department for Science, Innovation and Technology",Intellectual Property Office,05/12/2023,Supporting UK Business,PDTM Directorate,LAWRIE INTELLECTUAL PROPERTY,127557,"2,500.00",Not Applicable
"Department for Science, Innovation and Technology",Intellectual Property Office,19/12/2023,Supporting UK Business,PDTM Directorate,LAWRIE INTELLECTUAL PROPERTY,127674,"2,500.00",Not Applicable
"Department for Science, Innovation and Technology",Intellectual Property Office,15/12/2023,Accommodation,"Rights, Policy & Enforcement Directorate",EDF ENERGY,17373731,"-2,044.99",Not Applicable
"Department for Science, Innovation and Technology",Intellectual Property Office,15/12/2023,Accommodation,"Rights, Policy & Enforcement Directorate",EDF ENERGY,17373748,"2,050.97",Not Applicable
"Department for Science, Innovation and Technology",Intellectual Property Office,13/12/2023,Accommodation,"Rights, Policy & Enforcement Directorate",EDF ENERGY,17471488,"2,101.44",Not Applicable
"Department for Science, Innovation and Technology",Intellectual Property Office,13/12/2023,Accommodation,"Rights, Policy & Enforcement Directorate",EDF ENERGY,17477946,"36,754.20",Not Applicable
"Department for Science, Innovation and Technology",Intellectual Property Office,08/12/2023,Information Technology,DDaT Directorate,Bytes Software Services Ltd,1214912,"8,881.49",Not Applicable
"Department for Science, Innovation and Technology",Intellectual Property Office,12/12/2023,Information Technology,DDaT Directorate,Bytes Software Services Ltd,1214961,"27,929.99",Not Applicable
"Department for Science, Innovation and Technology",Intellectual Property Office,22/12/2023,Information Technology,DDaT Directorate,Bytes Software Services Ltd,1221135,"7,597.09",Not Applicable
"Department for Science, Innovation and Technology",Intellectual Property Office,13/12/2023,Staff Costs,"Rights, Policy & Enforcement Directorate",Pluxee UK Ltd,3907941,"2,166.69",Not Applicable
"Department for Science, Innovation and Technology",Intellectual Property Office,22/12/2023,Supporting UK Business,PDTM Directorate,Lean IP Ltd,INV2559,"2,500.00",Not Applicable
"Department for Science, Innovation and Technology",Intellectual Property Office,22/12/2023,Legal & Hearings,PDTM Directorate,Government Legal Department,537062,"6,507.12",Not Applicable
"Department for Science, Innovation and Technology",Intellectual Property Office,22/12/2023,Legal & Hearings,PDTM Directorate,Government Legal Department,537255,"3,440.16",Not Applicable
"Department for Science, Innovation and Technology",Intellectual Property Office,22/12/2023,Legal & Hearings,PDTM Directorate,Government Legal Department,537289,"6,451.56",Not Applicable
"Department for Science, Innovation and Technology",Intellectual Property Office,05/12/2023,Telecoms,DDaT Directorate,Personal expenses,UK10-122023-208,"2,238.11",Not Applicable
"Department for Science, Innovation and Technology",Intellectual Property Office,12/12/2023,Accommodation,"Rights, Policy & Enforcement Directorate",PHS Group,70227686,"6,306.00",Not Applicable
"Department for Science, Innovation and Technology",Intellectual Property Office,13/12/2023,Supporting UK Business,PDTM Directorate,Murgitroyd & Company Ltd,096405-23,"5,000.00",Not Applicable
"Department for Science, Innovation and Technology",Intellectual Property Office,21/12/2023,Miscellaneous Expenses General,PDTM Directorate,European Patent Office,40312134,"129,822.86",Not Applicable
"Department for Science, Innovation and Technology",Intellectual Property Office,21/12/2023,Information Technology,PDTM Directorate,European Patent Office,40312164,"145,127.44",Not Applicable
"Department for Science, Innovation and Technology",Intellectual Property Office,05/12/2023,Miscellaneous Expenses General,"Rights, Policy & Enforcement Directorate",Insight Health Screening Limited,SIN-04056,550.50,Not Applicable
"Department for Science, Innovation and Technology",Intellectual Property Office,20/12/2023,Office Supplies,"Rights, Policy & Enforcement Directorate",Insight Health Screening Limited,SIN-04073,"1,051.44",Not Applicable
"Department for Science, Innovation and Technology",Intellectual Property Office,15/12/2023,Miscellaneous Expenses General,"Rights, Policy & Enforcement Directorate",Insight Health Screening Limited,SIN-04191,"4,819.22",Not Applicable
"Department for Science, Innovation and Technology",Intellectual Property Office,15/12/2023,Information Technology,DDaT Directorate,Ingram Publishing,214457,933.00,Not Applicable
"Department for Science, Innovation and Technology",Intellectual Property Office,20/12/2023,Information Technology,Projects,People for Research Ltd,13480,"1,487.60",Not Applicable
"Department for Science, Innovation and Technology",Intellectual Property Office,22/12/2023,Supporting UK Business,PDTM Directorate,People for Research Ltd,13486,"1,320.00",Not Applicable
"Department for Science, Innovation and Technology",Intellectual Property Office,27/12/2023,Information Technology,PDTM Directorate,American Chemical Society,1180035,"1,806.97",Not Applicable
"Department for Science, Innovation and Technology",Intellectual Property Office,12/12/2023,Miscellaneous Expenses General,"Rights, Policy & Enforcement Directorate",Health Assured Ltd,SF-182702,"2,558.30",Not Applicable
"Department for Science, Innovation and Technology",Intellectual Property Office,05/12/2023,Supporting UK Business,PDTM Directorate,Appleyard Lees,169150,"5,000.00",Not Applicable
"Department for Science, Innovation and Technology",Intellectual Property Office,29/12/2023,Staff Costs,"Rights, Policy & Enforcement Directorate",Ernst & Young LLP,GB01G000488130,"1,276.80",Not Applicable
"Department for Science, Innovation and Technology",Intellectual Property Office,18/12/2023,Staff Costs,"Rights, Policy & Enforcement Directorate",Ernst & Young LLP,GB01G000488876,"1,393.20",Not Applicable
"Department for Science, Innovation and Technology",Intellectual Property Office,27/12/2023,International Payments,Business & International Policy Directorate,WIPO,CNTRW00004097,"1,052,924.60",Not Applicable
"Department for Science, Innovation and Technology",Intellectual Property Office,13/12/2023,Staff Costs,"Rights, Policy & Enforcement Directorate",KPMG LLP (CSL),5502744874,"1,960.80",Not Applicable
"Department for Science, Innovation and Technology",Intellectual Property Office,15/12/2023,Staff Costs,"Rights, Policy & Enforcement Directorate",KPMG LLP (CSL),5502748749,"1,920.00",Not Applicable
"Department for Science, Innovation and Technology",Intellectual Property Office,15/12/2023,Supporting UK Business,PDTM Directorate,Capella IP Ltd,23195,"2,500.00",Not Applicable
"Department for Science, Innovation and Technology",Intellectual Property Office,13/12/2023,Information Technology,DDaT Directorate,Equal Experts UK Ltd,INV-13705,"15,000.00",Not Applicable
"Department for Science, Innovation and Technology",Intellectual Property Office,15/12/2023,Supporting UK Business,PDTM Directorate,Brabners,346467,"2,500.00",Not Applicable
"Department for Science, Innovation and Technology",Intellectual Property Office,19/12/2023,Supporting UK Business,PDTM Directorate,IP21 LTD,31286,"2,500.00",Not Applicable
"Department for Science, Innovation and Technology",Intellectual Property Office,22/12/2023,Supporting UK Business,PDTM Directorate,IP-Active.com Limited,3935,"2,500.00",Not Applicable
"Department for Science, Innovation and Technology",Intellectual Property Office,20/12/2023,Accommodation,"Rights, Policy & Enforcement Directorate",Shred It Limited,9505858739,"1,211.02",Not Applicable
"Department for Science, Innovation and Technology",Intellectual Property Office,22/12/2023,Supporting UK Business,PDTM Directorate,Keltie LLP,184476,"2,500.00",Not Applicable
"Department for Science, Innovation and Technology",Intellectual Property Office,08/12/2023,Information Technology,DDaT Directorate,8X8 Solutions,4198282,"2,702.88",Not Applicable
"Department for Science, Innovation and Technology",Intellectual Property Office,05/12/2023,Supporting UK Business,PDTM Directorate,HGF Limited,766747,"2,500.00",Not Applicable
"Department for Science, Innovation and Technology",Intellectual Property Office,22/12/2023,Supporting UK Business,PDTM Directorate,HGF Limited,774095,"2,500.00",Not Applicable
"Department for Science, Innovation and Technology",Intellectual Property Office,20/12/2023,Supporting UK Business,PDTM Directorate,HGF Limited,774274,"2,500.00",Not Applicable
"Department for Science, Innovation and Technology",Intellectual Property Office,22/12/2023,Supporting UK Business,PDTM Directorate,Geldards LLP,30045009,"2,500.00",Not Applicable
"Department for Science, Innovation and Technology",Intellectual Property Office,19/12/2023,Supporting UK Business,PDTM Directorate,The IP Asset Partnership Ltd,2311027,"2,500.00",Not Applicable
"Department for Science, Innovation and Technology",Intellectual Property Office,13/12/2023,Supporting UK Business,PDTM Directorate,The IP Asset Partnership Ltd,2311028,"2,500.00",Not Applicable
"Department for Science, Innovation and Technology",Intellectual Property Office,04/12/2023,Staff Costs,Strategy Directorate,Chartered Institute of Public Relations.,1077858-2024,"4,900.00",Not Applicable
"Department for Science, Innovation and Technology",Intellectual Property Office,05/12/2023,Supporting UK Business,PDTM Directorate,Symbiosis IP Ltd,8697-23,"4,998.00",Not Applicable
"Department for Science, Innovation and Technology",Intellectual Property Office,13/12/2023,Supporting UK Business,PDTM Directorate,Muckle LLP,164193,"2,500.00",Not Applicable
"Department for Science, Innovation and Technology",Intellectual Property Office,29/12/2023,Information Technology,Projects,Deloitte LLP,8004290493,"44,810.60",Not Applicable
"Department for Science, Innovation and Technology",Intellectual Property Office,29/12/2023,Information Technology,DDaT Directorate,Deloitte LLP,8004291259,"103,243.20",Not Applicable
"Department for Science, Innovation and Technology",Intellectual Property Office,29/12/2023,Information Technology,Projects,Deloitte LLP,8004291262,"224,528.40",Not Applicable
"Department for Science, Innovation and Technology",Intellectual Property Office,29/12/2023,Information Technology,Projects,Deloitte LLP,8004295922,"-224,528.40",Not Applicable
"Department for Science, Innovation and Technology",Intellectual Property Office,29/12/2023,Information Technology,Projects,Deloitte LLP,8004296057,"220,928.40",Not Applicable
"Department for Science, Innovation and Technology",Intellectual Property Office,22/12/2023,Supporting UK Business,PDTM Directorate,Sirius IP,122023IAUBND01,"2,500.00",Not Applicable
"Department for Science, Innovation and Technology",Intellectual Property Office,20/12/2023,Supporting UK Business,PDTM Directorate,Sirius IP,122023IAUGHS01,"2,500.00",Not Applicable
"Department for Science, Innovation and Technology",Intellectual Property Office,22/12/2023,Supporting UK Business,PDTM Directorate,Sirius IP,122023IAUHGL01,"2,500.00",Not Applicable
"Department for Science, Innovation and Technology",Intellectual Property Office,13/12/2023,Supporting UK Business,PDTM Directorate,Sirius IP,122023IPA01,"5,000.00",Not Applicable
"Department for Science, Innovation and Technology",Intellectual Property Office,08/12/2023,Pay Costs,"Rights, Policy & Enforcement Directorate",Alexander Mann Solutions Limited,2918709,"1,279.06",Not Applicable
"Department for Science, Innovation and Technology",Intellectual Property Office,06/12/2023,Pay Costs,PDTM Directorate,Alexander Mann Solutions Limited,2931823,"4,095.36",Not Applicable
"Department for Science, Innovation and Technology",Intellectual Property Office,06/12/2023,Pay Costs,DDaT Directorate,Alexander Mann Solutions Limited,2931824,"3,024.30",Not Applicable
"Department for Science, Innovation and Technology",Intellectual Property Office,06/12/2023,Pay Costs,DDaT Directorate,Alexander Mann Solutions Limited,2931825,"4,095.36",Not Applicable
"Department for Science, Innovation and Technology",Intellectual Property Office,06/12/2023,Pay Costs,PDTM Directorate,Alexander Mann Solutions Limited,2931826,736.60,Not Applicable
"Department for Science, Innovation and Technology",Intellectual Property Office,08/12/2023,Pay Costs,PDTM Directorate,Alexander Mann Solutions Limited,2931827,736.60,Not Applicable
"Department for Science, Innovation and Technology",Intellectual Property Office,06/12/2023,Pay Costs,PDTM Directorate,Alexander Mann Solutions Limited,2931828,736.60,Not Applicable
"Department for Science, Innovation and Technology",Intellectual Property Office,06/12/2023,Pay Costs,DDaT Directorate,Alexander Mann Solutions Limited,2931829,"4,003.56",Not Applicable
"Department for Science, Innovation and Technology",Intellectual Property Office,06/12/2023,Pay Costs,DDaT Directorate,Alexander Mann Solutions Limited,2931830,"3,465.30",Not Applicable
"Department for Science, Innovation and Technology",Intellectual Property Office,06/12/2023,Pay Costs,PDTM Directorate,Alexander Mann Solutions Limited,2931832,736.60,Not Applicable
"Department for Science, Innovation and Technology",Intellectual Property Office,06/12/2023,Pay Costs,PDTM Directorate,Alexander Mann Solutions Limited,2931834,597.24,Not Applicable
"Department for Science, Innovation and Technology",Intellectual Property Office,06/12/2023,Pay Costs,PDTM Directorate,Alexander Mann Solutions Limited,2931835,726.65,Not Applicable
"Department for Science, Innovation and Technology",Intellectual Property Office,06/12/2023,Pay Costs,PDTM Directorate,Alexander Mann Solutions Limited,2931836,736.60,Not Applicable
"Department for Science, Innovation and Technology",Intellectual Property Office,06/12/2023,Pay Costs,PDTM Directorate,Alexander Mann Solutions Limited,2931837,736.60,Not Applicable
"Department for Science, Innovation and Technology",Intellectual Property Office,06/12/2023,Pay Costs,PDTM Directorate,Alexander Mann Solutions Limited,2931838,696.78,Not Applicable
"Department for Science, Innovation and Technology",Intellectual Property Office,06/12/2023,Pay Costs,PDTM Directorate,Alexander Mann Solutions Limited,2931839,736.60,Not Applicable
"Department for Science, Innovation and Technology",Intellectual Property Office,06/12/2023,Pay Costs,PDTM Directorate,Alexander Mann Solutions Limited,2931840,"1,223.64",Not Applicable
"Department for Science, Innovation and Technology",Intellectual Property Office,06/12/2023,Pay Costs,PDTM Directorate,Alexander Mann Solutions Limited,2931842,736.60,Not Applicable
"Department for Science, Innovation and Technology",Intellectual Property Office,06/12/2023,Pay Costs,PDTM Directorate,Alexander Mann Solutions Limited,2931843,685.98,Not Applicable
"Department for Science, Innovation and Technology",Intellectual Property Office,06/12/2023,Pay Costs,PDTM Directorate,Alexander Mann Solutions Limited,2931844,597.24,Not Applicable
"Department for Science, Innovation and Technology",Intellectual Property Office,06/12/2023,Pay Costs,PDTM Directorate,Alexander Mann Solutions Limited,2931845,655.34,Not Applicable
"Department for Science, Innovation and Technology",Intellectual Property Office,06/12/2023,Pay Costs,PDTM Directorate,Alexander Mann Solutions Limited,2931846,666.92,Not Applicable
"Department for Science, Innovation and Technology",Intellectual Property Office,06/12/2023,Pay Costs,PDTM Directorate,Alexander Mann Solutions Limited,2931848,736.60,Not Applicable
"Department for Science, Innovation and Technology",Intellectual Property Office,06/12/2023,Pay Costs,PDTM Directorate,Alexander Mann Solutions Limited,2931849,731.62,Not Applicable
"Department for Science, Innovation and Technology",Intellectual Property Office,06/12/2023,Pay Costs,PDTM Directorate,Alexander Mann Solutions Limited,2931850,736.60,Not Applicable
"Department for Science, Innovation and Technology",Intellectual Property Office,06/12/2023,Pay Costs,PDTM Directorate,Alexander Mann Solutions Limited,2931851,736.60,Not Applicable
"Department for Science, Innovation and Technology",Intellectual Property Office,08/12/2023,Pay Costs,PDTM Directorate,Alexander Mann Solutions Limited,2931852,"1,259.48",Not Applicable
"Department for Science, Innovation and Technology",Intellectual Property Office,06/12/2023,Pay Costs,DDaT Directorate,Alexander Mann Solutions Limited,2931853,"3,695.58",Not Applicable
"Department for Science, Innovation and Technology",Intellectual Property Office,06/12/2023,Pay Costs,DDaT Directorate,Alexander Mann Solutions Limited,2931854,"4,252.86",Not Applicable
"Department for Science, Innovation and Technology",Intellectual Property Office,06/12/2023,Pay Costs,PDTM Directorate,Alexander Mann Solutions Limited,2931855,656.96,Not Applicable
"Department for Science, Innovation and Technology",Intellectual Property Office,06/12/2023,Pay Costs,PDTM Directorate,Alexander Mann Solutions Limited,2931856,736.60,Not Applicable
"Department for Science, Innovation and Technology",Intellectual Property Office,06/12/2023,Pay Costs,PDTM Directorate,Alexander Mann Solutions Limited,2931857,537.52,Not Applicable
"Department for Science, Innovation and Technology",Intellectual Property Office,08/12/2023,Pay Costs,PDTM Directorate,Alexander Mann Solutions Limited,2931858,"1,116.11",Not Applicable
"Department for Science, Innovation and Technology",Intellectual Property Office,06/12/2023,Pay Costs,DDaT Directorate,Alexander Mann Solutions Limited,2931859,"4,157.57",Not Applicable
"Department for Science, Innovation and Technology",Intellectual Property Office,11/12/2023,Pay Costs,PDTM Directorate,Alexander Mann Solutions Limited,2931860,"1,555.51",Not Applicable
"Department for Science, Innovation and Technology",Intellectual Property Office,06/12/2023,Pay Costs,PDTM Directorate,Alexander Mann Solutions Limited,2931861,655.34,Not Applicable
"Department for Science, Innovation and Technology",Intellectual Property Office,06/12/2023,Pay Costs,PDTM Directorate,Alexander Mann Solutions Limited,2931862,736.60,Not Applicable
"Department for Science, Innovation and Technology",Intellectual Property Office,06/12/2023,Pay Costs,PDTM Directorate,Alexander Mann Solutions Limited,2931863,736.60,Not Applicable
"Department for Science, Innovation and Technology",Intellectual Property Office,06/12/2023,Pay Costs,PDTM Directorate,Alexander Mann Solutions Limited,2931864,736.60,Not Applicable
"Department for Science, Innovation and Technology",Intellectual Property Office,06/12/2023,Pay Costs,PDTM Directorate,Alexander Mann Solutions Limited,2931866,736.60,Not Applicable
"Department for Science, Innovation and Technology",Intellectual Property Office,06/12/2023,Pay Costs,PDTM Directorate,Alexander Mann Solutions Limited,2931867,655.34,Not Applicable
"Department for Science, Innovation and Technology",Intellectual Property Office,06/12/2023,Pay Costs,DDaT Directorate,Alexander Mann Solutions Limited,2931868,"4,410.42",Not Applicable
"Department for Science, Innovation and Technology",Intellectual Property Office,06/12/2023,Pay Costs,PDTM Directorate,Alexander Mann Solutions Limited,2931869,736.60,Not Applicable
"Department for Science, Innovation and Technology",Intellectual Property Office,06/12/2023,Pay Costs,DDaT Directorate,Alexander Mann Solutions Limited,2931870,"2,710.08",Not Applicable
"Department for Science, Innovation and Technology",Intellectual Property Office,06/12/2023,Pay Costs,DDaT Directorate,Alexander Mann Solutions Limited,2931871,"3,216.12",Not Applicable
"Department for Science, Innovation and Technology",Intellectual Property Office,06/12/2023,Pay Costs,PDTM Directorate,Alexander Mann Solutions Limited,2931872,685.98,Not Applicable
"Department for Science, Innovation and Technology",Intellectual Property Office,08/12/2023,Pay Costs,PDTM Directorate,Alexander Mann Solutions Limited,2931873,"1,098.19",Not Applicable
"Department for Science, Innovation and Technology",Intellectual Property Office,06/12/2023,Pay Costs,DDaT Directorate,Alexander Mann Solutions Limited,2931874,"2,440.62",Not Applicable
"Department for Science, Innovation and Technology",Intellectual Property Office,06/12/2023,Pay Costs,DDaT Directorate,Alexander Mann Solutions Limited,2931875,"2,795.40",Not Applicable
"Department for Science, Innovation and Technology",Intellectual Property Office,06/12/2023,Pay Costs,PDTM Directorate,Alexander Mann Solutions Limited,2931876,736.60,Not Applicable
"Department for Science, Innovation and Technology",Intellectual Property Office,08/12/2023,Pay Costs,Finance Directorate,Alexander Mann Solutions Limited,2931877,736.60,Not Applicable
"Department for Science, Innovation and Technology",Intellectual Property Office,06/12/2023,Pay Costs,DDaT Directorate,Alexander Mann Solutions Limited,2931878,"4,095.36",Not Applicable
"Department for Science, Innovation and Technology",Intellectual Property Office,06/12/2023,Pay Costs,"Rights, Policy & Enforcement Directorate",Alexander Mann Solutions Limited,2931879,736.60,Not Applicable
"Department for Science, Innovation and Technology",Intellectual Property Office,08/12/2023,Pay Costs,Projects,Alexander Mann Solutions Limited,2931880,"9,450.84",Not Applicable
"Department for Science, Innovation and Technology",Intellectual Property Office,06/12/2023,Pay Costs,Projects,Alexander Mann Solutions Limited,2931881,"3,350.64",Not Applicable
"Department for Science, Innovation and Technology",Intellectual Property Office,06/12/2023,Pay Costs,Projects,Alexander Mann Solutions Limited,2931882,"2,999.70",Not Applicable
"Department for Science, Innovation and Technology",Intellectual Property Office,06/12/2023,Pay Costs,Projects,Alexander Mann Solutions Limited,2931883,"4,090.44",Not Applicable
"Department for Science, Innovation and Technology",Intellectual Property Office,06/12/2023,Pay Costs,Projects,Alexander Mann Solutions Limited,2931884,"4,003.56",Not Applicable
"Department for Science, Innovation and Technology",Intellectual Property Office,06/12/2023,Pay Costs,DDaT Directorate,Alexander Mann Solutions Limited,2931885,"5,453.94",Not Applicable
"Department for Science, Innovation and Technology",Intellectual Property Office,06/12/2023,Pay Costs,PDTM Directorate,Alexander Mann Solutions Limited,2931886,597.24,Not Applicable
"Department for Science, Innovation and Technology",Intellectual Property Office,06/12/2023,Pay Costs,PDTM Directorate,Alexander Mann Solutions Limited,2931887,736.60,Not Applicable
"Department for Science, Innovation and Technology",Intellectual Property Office,08/12/2023,Pay Costs,PDTM Directorate,Alexander Mann Solutions Limited,2931888,696.78,Not Applicable
"Department for Science, Innovation and Technology",Intellectual Property Office,06/12/2023,Pay Costs,PDTM Directorate,Alexander Mann Solutions Limited,2931889,736.60,Not Applicable
"Department for Science, Innovation and Technology",Intellectual Property Office,06/12/2023,Pay Costs,DDaT Directorate,Alexander Mann Solutions Limited,2931890,"3,326.69",Not Applicable
"Department for Science, Innovation and Technology",Intellectual Property Office,06/12/2023,Pay Costs,Projects,Alexander Mann Solutions Limited,2931891,"3,449.23",Not Applicable
"Department for Science, Innovation and Technology",Intellectual Property Office,06/12/2023,Pay Costs,PDTM Directorate,Alexander Mann Solutions Limited,2931892,736.60,Not Applicable
"Department for Science, Innovation and Technology",Intellectual Property Office,06/12/2023,Pay Costs,PDTM Directorate,Alexander Mann Solutions Limited,2931893,736.60,Not Applicable
"Department for Science, Innovation and Technology",Intellectual Property Office,06/12/2023,Pay Costs,PDTM Directorate,Alexander Mann Solutions Limited,2931894,736.60,Not Applicable
"Department for Science, Innovation and Technology",Intellectual Property Office,06/12/2023,Pay Costs,PDTM Directorate,Alexander Mann Solutions Limited,2931895,736.60,Not Applicable
"Department for Science, Innovation and Technology",Intellectual Property Office,06/12/2023,Pay Costs,PDTM Directorate,Alexander Mann Solutions Limited,2931896,736.60,Not Applicable
"Department for Science, Innovation and Technology",Intellectual Property Office,06/12/2023,Pay Costs,PDTM Directorate,Alexander Mann Solutions Limited,2931897,736.60,Not Applicable
"Department for Science, Innovation and Technology",Intellectual Property Office,06/12/2023,Pay Costs,PDTM Directorate,Alexander Mann Solutions Limited,2931898,736.60,Not Applicable
"Department for Science, Innovation and Technology",Intellectual Property Office,06/12/2023,Pay Costs,PDTM Directorate,Alexander Mann Solutions Limited,2931899,696.78,Not Applicable
"Department for Science, Innovation and Technology",Intellectual Property Office,06/12/2023,Pay Costs,PDTM Directorate,Alexander Mann Solutions Limited,2931900,736.60,Not Applicable
"Department for Science, Innovation and Technology",Intellectual Property Office,06/12/2023,Pay Costs,PDTM Directorate,Alexander Mann Solutions Limited,2931901,736.60,Not Applicable
"Department for Science, Innovation and Technology",Intellectual Property Office,06/12/2023,Pay Costs,PDTM Directorate,Alexander Mann Solutions Limited,2931902,736.60,Not Applicable
"Department for Science, Innovation and Technology",Intellectual Property Office,13/12/2023,Pay Costs,PDTM Directorate,Alexander Mann Solutions Limited,2936182,"4,095.36",Not Applicable
"Department for Science, Innovation and Technology",Intellectual Property Office,15/12/2023,Pay Costs,Projects,Alexander Mann Solutions Limited,2936183,"2,640.46",Not Applicable
"Department for Science, Innovation and Technology",Intellectual Property Office,13/12/2023,Pay Costs,DDaT Directorate,Alexander Mann Solutions Limited,2936184,"3,024.30",Not Applicable
"Department for Science, Innovation and Technology",Intellectual Property Office,13/12/2023,Pay Costs,DDaT Directorate,Alexander Mann Solutions Limited,2936185,"3,276.29",Not Applicable
"Department for Science, Innovation and Technology",Intellectual Property Office,13/12/2023,Pay Costs,PDTM Directorate,Alexander Mann Solutions Limited,2936186,736.60,Not Applicable
"Department for Science, Innovation and Technology",Intellectual Property Office,13/12/2023,Pay Costs,DDaT Directorate,Alexander Mann Solutions Limited,2936187,"4,003.56",Not Applicable
"Department for Science, Innovation and Technology",Intellectual Property Office,13/12/2023,Pay Costs,DDaT Directorate,Alexander Mann Solutions Limited,2936188,"3,465.30",Not Applicable
"Department for Science, Innovation and Technology",Intellectual Property Office,13/12/2023,Pay Costs,DDaT Directorate,Alexander Mann Solutions Limited,2936189,"8,862.72",Not Applicable
"Department for Science, Innovation and Technology",Intellectual Property Office,13/12/2023,Pay Costs,PDTM Directorate,Alexander Mann Solutions Limited,2936191,736.60,Not Applicable
"Department for Science, Innovation and Technology",Intellectual Property Office,13/12/2023,Pay Costs,PDTM Directorate,Alexander Mann Solutions Limited,2936192,685.98,Not Applicable
"Department for Science, Innovation and Technology",Intellectual Property Office,13/12/2023,Pay Costs,PDTM Directorate,Alexander Mann Solutions Limited,2936193,597.24,Not Applicable
"Department for Science, Innovation and Technology",Intellectual Property Office,15/12/2023,Pay Costs,PDTM Directorate,Alexander Mann Solutions Limited,2936194,736.60,Not Applicable
"Department for Science, Innovation and Technology",Intellectual Property Office,13/12/2023,Pay Costs,PDTM Directorate,Alexander Mann Solutions Limited,2936195,736.60,Not Applicable
"Department for Science, Innovation and Technology",Intellectual Property Office,15/12/2023,Pay Costs,PDTM Directorate,Alexander Mann Solutions Limited,2936196,736.60,Not Applicable
"Department for Science, Innovation and Technology",Intellectual Property Office,15/12/2023,Pay Costs,PDTM Directorate,Alexander Mann Solutions Limited,2936197,681.85,Not Applicable
"Department for Science, Innovation and Technology",Intellectual Property Office,13/12/2023,Pay Costs,PDTM Directorate,Alexander Mann Solutions Limited,2936198,597.24,Not Applicable
"Department for Science, Innovation and Technology",Intellectual Property Office,15/12/2023,Pay Costs,PDTM Directorate,Alexander Mann Solutions Limited,2936199,685.98,Not Applicable
"Department for Science, Innovation and Technology",Intellectual Property Office,13/12/2023,Pay Costs,PDTM Directorate,Alexander Mann Solutions Limited,2936200,685.98,Not Applicable
"Department for Science, Innovation and Technology",Intellectual Property Office,13/12/2023,Pay Costs,PDTM Directorate,Alexander Mann Solutions Limited,2936201,597.24,Not Applicable
"Department for Science, Innovation and Technology",Intellectual Property Office,13/12/2023,Pay Costs,PDTM Directorate,Alexander Mann Solutions Limited,2936202,655.34,Not Applicable
"Department for Science, Innovation and Technology",Intellectual Property Office,13/12/2023,Pay Costs,PDTM Directorate,Alexander Mann Solutions Limited,2936203,736.60,Not Applicable
"Department for Science, Innovation and Technology",Intellectual Property Office,13/12/2023,Pay Costs,PDTM Directorate,Alexander Mann Solutions Limited,2936206,562.40,Not Applicable
"Department for Science, Innovation and Technology",Intellectual Property Office,13/12/2023,Pay Costs,PDTM Directorate,Alexander Mann Solutions Limited,2936207,736.60,Not Applicable
"Department for Science, Innovation and Technology",Intellectual Property Office,13/12/2023,Pay Costs,PDTM Directorate,Alexander Mann Solutions Limited,2936208,736.60,Not Applicable
"Department for Science, Innovation and Technology",Intellectual Property Office,13/12/2023,Pay Costs,PDTM Directorate,Alexander Mann Solutions Limited,2936209,685.98,Not Applicable
"Department for Science, Innovation and Technology",Intellectual Property Office,13/12/2023,Pay Costs,DDaT Directorate,Alexander Mann Solutions Limited,2936210,"2,956.46",Not Applicable
"Department for Science, Innovation and Technology",Intellectual Property Office,13/12/2023,Pay Costs,PDTM Directorate,Alexander Mann Solutions Limited,2936211,736.60,Not Applicable
"Department for Science, Innovation and Technology",Intellectual Property Office,13/12/2023,Pay Costs,PDTM Directorate,Alexander Mann Solutions Limited,2936212,736.60,Not Applicable
"Department for Science, Innovation and Technology",Intellectual Property Office,13/12/2023,Pay Costs,PDTM Directorate,Alexander Mann Solutions Limited,2936213,736.60,Not Applicable
"Department for Science, Innovation and Technology",Intellectual Property Office,13/12/2023,Pay Costs,DDaT Directorate,Alexander Mann Solutions Limited,2936214,"4,157.57",Not Applicable
"Department for Science, Innovation and Technology",Intellectual Property Office,13/12/2023,Pay Costs,PDTM Directorate,Alexander Mann Solutions Limited,2936215,"1,186.70",Not Applicable
"Department for Science, Innovation and Technology",Intellectual Property Office,13/12/2023,Pay Costs,PDTM Directorate,Alexander Mann Solutions Limited,2936216,736.60,Not Applicable
"Department for Science, Innovation and Technology",Intellectual Property Office,13/12/2023,Pay Costs,PDTM Directorate,Alexander Mann Solutions Limited,2936217,736.60,Not Applicable
"Department for Science, Innovation and Technology",Intellectual Property Office,13/12/2023,Pay Costs,PDTM Directorate,Alexander Mann Solutions Limited,2936219,587.29,Not Applicable
"Department for Science, Innovation and Technology",Intellectual Property Office,13/12/2023,Pay Costs,PDTM Directorate,Alexander Mann Solutions Limited,2936220,655.34,Not Applicable
"Department for Science, Innovation and Technology",Intellectual Property Office,13/12/2023,Pay Costs,DDaT Directorate,Alexander Mann Solutions Limited,2936221,"4,410.42",Not Applicable
"Department for Science, Innovation and Technology",Intellectual Property Office,13/12/2023,Pay Costs,PDTM Directorate,Alexander Mann Solutions Limited,2936222,736.60,Not Applicable
"Department for Science, Innovation and Technology",Intellectual Property Office,13/12/2023,Pay Costs,DDaT Directorate,Alexander Mann Solutions Limited,2936223,"2,710.08",Not Applicable
"Department for Science, Innovation and Technology",Intellectual Property Office,13/12/2023,Pay Costs,DDaT Directorate,Alexander Mann Solutions Limited,2936224,"3,216.12",Not Applicable
"Department for Science, Innovation and Technology",Intellectual Property Office,13/12/2023,Pay Costs,PDTM Directorate,Alexander Mann Solutions Limited,2936225,685.98,Not Applicable
"Department for Science, Innovation and Technology",Intellectual Property Office,13/12/2023,Pay Costs,DDaT Directorate,Alexander Mann Solutions Limited,2936226,"2,440.62",Not Applicable
"Department for Science, Innovation and Technology",Intellectual Property Office,13/12/2023,Pay Costs,DDaT Directorate,Alexander Mann Solutions Limited,2936227,"2,795.40",Not Applicable
"Department for Science, Innovation and Technology",Intellectual Property Office,13/12/2023,Pay Costs,PDTM Directorate,Alexander Mann Solutions Limited,2936228,736.60,Not Applicable
"Department for Science, Innovation and Technology",Intellectual Property Office,15/12/2023,Pay Costs,Finance Directorate,Alexander Mann Solutions Limited,2936229,736.60,Not Applicable
"Department for Science, Innovation and Technology",Intellectual Property Office,13/12/2023,Pay Costs,DDaT Directorate,Alexander Mann Solutions Limited,2936230,"4,095.36",Not Applicable
"Department for Science, Innovation and Technology",Intellectual Property Office,13/12/2023,Pay Costs,"Rights, Policy & Enforcement Directorate",Alexander Mann Solutions Limited,2936231,736.60,Not Applicable
"Department for Science, Innovation and Technology",Intellectual Property Office,13/12/2023,Pay Costs,Projects,Alexander Mann Solutions Limited,2936232,"4,725.42",Not Applicable
"Department for Science, Innovation and Technology",Intellectual Property Office,13/12/2023,Pay Costs,PDTM Directorate,Alexander Mann Solutions Limited,2936233,736.60,Not Applicable
"Department for Science, Innovation and Technology",Intellectual Property Office,13/12/2023,Pay Costs,Projects,Alexander Mann Solutions Limited,2936234,"2,999.70",Not Applicable
"Department for Science, Innovation and Technology",Intellectual Property Office,13/12/2023,Pay Costs,Projects,Alexander Mann Solutions Limited,2936235,"4,090.44",Not Applicable
"Department for Science, Innovation and Technology",Intellectual Property Office,13/12/2023,Pay Costs,Projects,Alexander Mann Solutions Limited,2936236,"8,820.84",Not Applicable
"Department for Science, Innovation and Technology",Intellectual Property Office,13/12/2023,Pay Costs,DDaT Directorate,Alexander Mann Solutions Limited,2936237,"5,453.94",Not Applicable
"Department for Science, Innovation and Technology",Intellectual Property Office,13/12/2023,Pay Costs,PDTM Directorate,Alexander Mann Solutions Limited,2936238,736.60,Not Applicable
"Department for Science, Innovation and Technology",Intellectual Property Office,13/12/2023,Pay Costs,PDTM Directorate,Alexander Mann Solutions Limited,2936239,736.60,Not Applicable
"Department for Science, Innovation and Technology",Intellectual Property Office,15/12/2023,Pay Costs,PDTM Directorate,Alexander Mann Solutions Limited,2936240,577.33,Not Applicable
"Department for Science, Innovation and Technology",Intellectual Property Office,13/12/2023,Pay Costs,PDTM Directorate,Alexander Mann Solutions Limited,2936241,736.60,Not Applicable
"Department for Science, Innovation and Technology",Intellectual Property Office,13/12/2023,Pay Costs,DDaT Directorate,Alexander Mann Solutions Limited,2936242,"3,742.52",Not Applicable
"Department for Science, Innovation and Technology",Intellectual Property Office,13/12/2023,Pay Costs,Projects,Alexander Mann Solutions Limited,2936243,"4,311.54",Not Applicable
"Department for Science, Innovation and Technology",Intellectual Property Office,13/12/2023,Pay Costs,DDaT Directorate,Alexander Mann Solutions Limited,2936244,"4,465.50",Not Applicable
"Department for Science, Innovation and Technology",Intellectual Property Office,13/12/2023,Pay Costs,PDTM Directorate,Alexander Mann Solutions Limited,2936245,736.60,Not Applicable
"Department for Science, Innovation and Technology",Intellectual Property Office,13/12/2023,Pay Costs,PDTM Directorate,Alexander Mann Solutions Limited,2936246,736.60,Not Applicable
"Department for Science, Innovation and Technology",Intellectual Property Office,13/12/2023,Pay Costs,"Rights, Policy & Enforcement Directorate",Alexander Mann Solutions Limited,2936247,"1,371.96",Not Applicable
"Department for Science, Innovation and Technology",Intellectual Property Office,13/12/2023,Pay Costs,PDTM Directorate,Alexander Mann Solutions Limited,2936248,736.60,Not Applicable
"Department for Science, Innovation and Technology",Intellectual Property Office,13/12/2023,Pay Costs,PDTM Directorate,Alexander Mann Solutions Limited,2936249,736.60,Not Applicable
"Department for Science, Innovation and Technology",Intellectual Property Office,13/12/2023,Pay Costs,PDTM Directorate,Alexander Mann Solutions Limited,2936250,736.60,Not Applicable
"Department for Science, Innovation and Technology",Intellectual Property Office,13/12/2023,Pay Costs,PDTM Directorate,Alexander Mann Solutions Limited,2936251,736.60,Not Applicable
"Department for Science, Innovation and Technology",Intellectual Property Office,15/12/2023,Pay Costs,"Rights, Policy & Enforcement Directorate",Alexander Mann Solutions Limited,2936252,"2,030.14",Not Applicable
"Department for Science, Innovation and Technology",Intellectual Property Office,13/12/2023,Pay Costs,PDTM Directorate,Alexander Mann Solutions Limited,2936253,"4,095.36",Not Applicable
"Department for Science, Innovation and Technology",Intellectual Property Office,13/12/2023,Pay Costs,PDTM Directorate,Alexander Mann Solutions Limited,2936254,736.60,Not Applicable
"Department for Science, Innovation and Technology",Intellectual Property Office,13/12/2023,Pay Costs,PDTM Directorate,Alexander Mann Solutions Limited,2936255,746.56,Not Applicable
"Department for Science, Innovation and Technology",Intellectual Property Office,13/12/2023,Pay Costs,PDTM Directorate,Alexander Mann Solutions Limited,2936256,736.60,Not Applicable
"Department for Science, Innovation and Technology",Intellectual Property Office,15/12/2023,Pay Costs,PDTM Directorate,Alexander Mann Solutions Limited,2936257,764.20,Not Applicable
"Department for Science, Innovation and Technology",Intellectual Property Office,13/12/2023,Pay Costs,DDaT Directorate,Alexander Mann Solutions Limited,2936258,"3,937.86",Not Applicable
"Department for Science, Innovation and Technology",Intellectual Property Office,15/12/2023,Pay Costs,PDTM Directorate,Alexander Mann Solutions Limited,2936259,"1,500.79",Not Applicable
"Department for Science, Innovation and Technology",Intellectual Property Office,19/12/2023,Pay Costs,PDTM Directorate,Alexander Mann Solutions Limited,2940517,"4,095.36",Not Applicable
"Department for Science, Innovation and Technology",Intellectual Property Office,20/12/2023,Pay Costs,Projects,Alexander Mann Solutions Limited,2940518,"1,087.51",Not Applicable
"Department for Science, Innovation and Technology",Intellectual Property Office,19/12/2023,Pay Costs,PDTM Directorate,Alexander Mann Solutions Limited,2940519,"1,194.48",Not Applicable
"Department for Science, Innovation and Technology",Intellectual Property Office,19/12/2023,Pay Costs,PDTM Directorate,Alexander Mann Solutions Limited,2940520,736.60,Not Applicable
"Department for Science, Innovation and Technology",Intellectual Property Office,19/12/2023,Pay Costs,DDaT Directorate,Alexander Mann Solutions Limited,2940521,"4,003.56",Not Applicable
"Department for Science, Innovation and Technology",Intellectual Property Office,19/12/2023,Pay Costs,DDaT Directorate,Alexander Mann Solutions Limited,2940522,"3,465.30",Not Applicable
"Department for Science, Innovation and Technology",Intellectual Property Office,22/12/2023,Pay Costs,DDaT Directorate,Alexander Mann Solutions Limited,2940523,"8,862.72",Not Applicable
"Department for Science, Innovation and Technology",Intellectual Property Office,19/12/2023,Pay Costs,PDTM Directorate,Alexander Mann Solutions Limited,2940524,736.60,Not Applicable
"Department for Science, Innovation and Technology",Intellectual Property Office,19/12/2023,Pay Costs,PDTM Directorate,Alexander Mann Solutions Limited,2940525,736.60,Not Applicable
"Department for Science, Innovation and Technology",Intellectual Property Office,19/12/2023,Pay Costs,PDTM Directorate,Alexander Mann Solutions Limited,2940526,685.98,Not Applicable
"Department for Science, Innovation and Technology",Intellectual Property Office,19/12/2023,Pay Costs,PDTM Directorate,Alexander Mann Solutions Limited,2940527,597.24,Not Applicable
"Department for Science, Innovation and Technology",Intellectual Property Office,19/12/2023,Pay Costs,PDTM Directorate,Alexander Mann Solutions Limited,2940528,736.60,Not Applicable
"Department for Science, Innovation and Technology",Intellectual Property Office,19/12/2023,Pay Costs,PDTM Directorate,Alexander Mann Solutions Limited,2940529,597.24,Not Applicable
"Department for Science, Innovation and Technology",Intellectual Property Office,19/12/2023,Pay Costs,PDTM Directorate,Alexander Mann Solutions Limited,2940530,686.83,Not Applicable
"Department for Science, Innovation and Technology",Intellectual Property Office,19/12/2023,Pay Costs,PDTM Directorate,Alexander Mann Solutions Limited,2940531,736.60,Not Applicable
"Department for Science, Innovation and Technology",Intellectual Property Office,22/12/2023,Pay Costs,PDTM Directorate,Alexander Mann Solutions Limited,2940532,"1,666.21",Not Applicable
"Department for Science, Innovation and Technology",Intellectual Property Office,19/12/2023,Pay Costs,PDTM Directorate,Alexander Mann Solutions Limited,2940534,"1,473.19",Not Applicable
"Department for Science, Innovation and Technology",Intellectual Property Office,22/12/2023,Pay Costs,PDTM Directorate,Alexander Mann Solutions Limited,2940535,"1,259.48",Not Applicable
"Department for Science, Innovation and Technology",Intellectual Property Office,19/12/2023,Pay Costs,PDTM Directorate,Alexander Mann Solutions Limited,2940536,597.24,Not Applicable
"Department for Science, Innovation and Technology",Intellectual Property Office,19/12/2023,Pay Costs,PDTM Directorate,Alexander Mann Solutions Limited,2940539,587.29,Not Applicable
"Department for Science, Innovation and Technology",Intellectual Property Office,19/12/2023,Pay Costs,PDTM Directorate,Alexander Mann Solutions Limited,2940540,597.24,Not Applicable
"Department for Science, Innovation and Technology",Intellectual Property Office,19/12/2023,Pay Costs,PDTM Directorate,Alexander Mann Solutions Limited,2940541,736.60,Not Applicable
"Department for Science, Innovation and Technology",Intellectual Property Office,22/12/2023,Pay Costs,PDTM Directorate,Alexander Mann Solutions Limited,2940542,"1,259.48",Not Applicable
"Department for Science, Innovation and Technology",Intellectual Property Office,19/12/2023,Pay Costs,DDaT Directorate,Alexander Mann Solutions Limited,2940543,"3,695.58",Not Applicable
"Department for Science, Innovation and Technology",Intellectual Property Office,19/12/2023,Pay Costs,PDTM Directorate,Alexander Mann Solutions Limited,2940544,736.60,Not Applicable
"Department for Science, Innovation and Technology",Intellectual Property Office,19/12/2023,Pay Costs,PDTM Directorate,Alexander Mann Solutions Limited,2940545,627.11,Not Applicable
"Department for Science, Innovation and Technology",Intellectual Property Office,19/12/2023,Pay Costs,PDTM Directorate,Alexander Mann Solutions Limited,2940546,736.60,Not Applicable
"Department for Science, Innovation and Technology",Intellectual Property Office,22/12/2023,Pay Costs,PDTM Directorate,Alexander Mann Solutions Limited,2940547,685.98,Not Applicable
"Department for Science, Innovation and Technology",Intellectual Property Office,19/12/2023,Pay Costs,DDaT Directorate,Alexander Mann Solutions Limited,2940548,"3,695.62",Not Applicable
"Department for Science, Innovation and Technology",Intellectual Property Office,19/12/2023,Pay Costs,PDTM Directorate,Alexander Mann Solutions Limited,2940549,873.79,Not Applicable
"Department for Science, Innovation and Technology",Intellectual Property Office,19/12/2023,Pay Costs,PDTM Directorate,Alexander Mann Solutions Limited,2940550,531.36,Not Applicable
"Department for Science, Innovation and Technology",Intellectual Property Office,19/12/2023,Pay Costs,PDTM Directorate,Alexander Mann Solutions Limited,2940551,736.60,Not Applicable
"Department for Science, Innovation and Technology",Intellectual Property Office,19/12/2023,Pay Costs,PDTM Directorate,Alexander Mann Solutions Limited,2940552,"1,323.89",Not Applicable
"Department for Science, Innovation and Technology",Intellectual Property Office,19/12/2023,Pay Costs,PDTM Directorate,Alexander Mann Solutions Limited,2940553,736.60,Not Applicable
"Department for Science, Innovation and Technology",Intellectual Property Office,19/12/2023,Pay Costs,PDTM Directorate,Alexander Mann Solutions Limited,2940555,736.60,Not Applicable
"Department for Science, Innovation and Technology",Intellectual Property Office,19/12/2023,Pay Costs,PDTM Directorate,Alexander Mann Solutions Limited,2940556,655.34,Not Applicable
"Department for Science, Innovation and Technology",Intellectual Property Office,19/12/2023,Pay Costs,DDaT Directorate,Alexander Mann Solutions Limited,2940557,"3,528.34",Not Applicable
"Department for Science, Innovation and Technology",Intellectual Property Office,19/12/2023,Pay Costs,PDTM Directorate,Alexander Mann Solutions Limited,2940558,736.60,Not Applicable
"Department for Science, Innovation and Technology",Intellectual Property Office,19/12/2023,Pay Costs,DDaT Directorate,Alexander Mann Solutions Limited,2940559,"2,168.06",Not Applicable
"Department for Science, Innovation and Technology",Intellectual Property Office,19/12/2023,Pay Costs,DDaT Directorate,Alexander Mann Solutions Limited,2940560,"3,216.12",Not Applicable
"Department for Science, Innovation and Technology",Intellectual Property Office,19/12/2023,Pay Costs,PDTM Directorate,Alexander Mann Solutions Limited,2940561,685.98,Not Applicable
"Department for Science, Innovation and Technology",Intellectual Property Office,29/12/2023,Pay Costs,PDTM Directorate,Alexander Mann Solutions Limited,2940562,519.12,Not Applicable
"Department for Science, Innovation and Technology",Intellectual Property Office,19/12/2023,Pay Costs,DDaT Directorate,Alexander Mann Solutions Limited,2940563,"2,440.62",Not Applicable
"Department for Science, Innovation and Technology",Intellectual Property Office,19/12/2023,Pay Costs,DDaT Directorate,Alexander Mann Solutions Limited,2940564,"2,795.40",Not Applicable
"Department for Science, Innovation and Technology",Intellectual Property Office,19/12/2023,Pay Costs,PDTM Directorate,Alexander Mann Solutions Limited,2940565,736.60,Not Applicable
"Department for Science, Innovation and Technology",Intellectual Property Office,20/12/2023,Pay Costs,Finance Directorate,Alexander Mann Solutions Limited,2940566,736.60,Not Applicable
"Department for Science, Innovation and Technology",Intellectual Property Office,19/12/2023,Pay Costs,DDaT Directorate,Alexander Mann Solutions Limited,2940567,"4,095.36",Not Applicable
"Department for Science, Innovation and Technology",Intellectual Property Office,19/12/2023,Pay Costs,Projects,Alexander Mann Solutions Limited,2940568,"4,725.42",Not Applicable
"Department for Science, Innovation and Technology",Intellectual Property Office,19/12/2023,Pay Costs,PDTM Directorate,Alexander Mann Solutions Limited,2940569,736.60,Not Applicable
"Department for Science, Innovation and Technology",Intellectual Property Office,20/12/2023,Pay Costs,Projects,Alexander Mann Solutions Limited,2940570,"6,701.28",Not Applicable
"Department for Science, Innovation and Technology",Intellectual Property Office,19/12/2023,Pay Costs,Projects,Alexander Mann Solutions Limited,2940571,"2,999.70",Not Applicable
"Department for Science, Innovation and Technology",Intellectual Property Office,19/12/2023,Pay Costs,Projects,Alexander Mann Solutions Limited,2940572,"4,090.44",Not Applicable
"Department for Science, Innovation and Technology",Intellectual Property Office,19/12/2023,Pay Costs,Projects,Alexander Mann Solutions Limited,2940573,"4,410.42",Not Applicable
"Department for Science, Innovation and Technology",Intellectual Property Office,19/12/2023,Pay Costs,PDTM Directorate,Alexander Mann Solutions Limited,2940574,736.60,Not Applicable
"Department for Science, Innovation and Technology",Intellectual Property Office,19/12/2023,Pay Costs,PDTM Directorate,Alexander Mann Solutions Limited,2940575,597.24,Not Applicable
"Department for Science, Innovation and Technology",Intellectual Property Office,19/12/2023,Pay Costs,PDTM Directorate,Alexander Mann Solutions Limited,2940577,736.60,Not Applicable
"Department for Science, Innovation and Technology",Intellectual Property Office,19/12/2023,Pay Costs,DDaT Directorate,Alexander Mann Solutions Limited,2940578,"4,158.36",Not Applicable
"Department for Science, Innovation and Technology",Intellectual Property Office,19/12/2023,Pay Costs,Projects,Alexander Mann Solutions Limited,2940579,"4,311.54",Not Applicable
"Department for Science, Innovation and Technology",Intellectual Property Office,20/12/2023,Pay Costs,DDaT Directorate,Alexander Mann Solutions Limited,2940580,"1,786.20",Not Applicable
"Department for Science, Innovation and Technology",Intellectual Property Office,19/12/2023,Pay Costs,PDTM Directorate,Alexander Mann Solutions Limited,2940581,736.60,Not Applicable
"Department for Science, Innovation and Technology",Intellectual Property Office,19/12/2023,Pay Costs,PDTM Directorate,Alexander Mann Solutions Limited,2940582,731.62,Not Applicable
"Department for Science, Innovation and Technology",Intellectual Property Office,19/12/2023,Pay Costs,"Rights, Policy & Enforcement Directorate",Alexander Mann Solutions Limited,2940583,685.98,Not Applicable
"Department for Science, Innovation and Technology",Intellectual Property Office,19/12/2023,Pay Costs,PDTM Directorate,Alexander Mann Solutions Limited,2940584,736.60,Not Applicable
"Department for Science, Innovation and Technology",Intellectual Property Office,19/12/2023,Pay Costs,PDTM Directorate,Alexander Mann Solutions Limited,2940585,736.60,Not Applicable
"Department for Science, Innovation and Technology",Intellectual Property Office,19/12/2023,Pay Costs,PDTM Directorate,Alexander Mann Solutions Limited,2940586,587.29,Not Applicable
"Department for Science, Innovation and Technology",Intellectual Property Office,19/12/2023,Pay Costs,PDTM Directorate,Alexander Mann Solutions Limited,2940587,736.60,Not Applicable
"Department for Science, Innovation and Technology",Intellectual Property Office,19/12/2023,Pay Costs,PDTM Directorate,Alexander Mann Solutions Limited,2940589,"2,457.22",Not Applicable
"Department for Science, Innovation and Technology",Intellectual Property Office,19/12/2023,Pay Costs,PDTM Directorate,Alexander Mann Solutions Limited,2940590,736.60,Not Applicable
"Department for Science, Innovation and Technology",Intellectual Property Office,19/12/2023,Pay Costs,PDTM Directorate,Alexander Mann Solutions Limited,2940591,"1,393.56",Not Applicable
"Department for Science, Innovation and Technology",Intellectual Property Office,19/12/2023,Pay Costs,PDTM Directorate,Alexander Mann Solutions Limited,2940592,746.56,Not Applicable
"Department for Science, Innovation and Technology",Intellectual Property Office,19/12/2023,Pay Costs,PDTM Directorate,Alexander Mann Solutions Limited,2940593,622.13,Not Applicable
"Department for Science, Innovation and Technology",Intellectual Property Office,19/12/2023,Pay Costs,PDTM Directorate,Alexander Mann Solutions Limited,2940594,736.60,Not Applicable
"Department for Science, Innovation and Technology",Intellectual Property Office,19/12/2023,Pay Costs,DDaT Directorate,Alexander Mann Solutions Limited,2940595,"3,024.30",Not Applicable
"Department for Science, Innovation and Technology",Intellectual Property Office,19/12/2023,Pay Costs,PDTM Directorate,Alexander Mann Solutions Limited,2940596,736.60,Not Applicable
"Department for Science, Innovation and Technology",Intellectual Property Office,19/12/2023,Pay Costs,PDTM Directorate,Alexander Mann Solutions Limited,2940597,736.60,Not Applicable
"Department for Science, Innovation and Technology",Intellectual Property Office,29/12/2023,Pay Costs,DDaT Directorate,Alexander Mann Solutions Limited,2944883,"8,190.72",Not Applicable
"Department for Science, Innovation and Technology",Intellectual Property Office,29/12/2023,Pay Costs,PDTM Directorate,Alexander Mann Solutions Limited,2944884,736.60,Not Applicable
"Department for Science, Innovation and Technology",Intellectual Property Office,29/12/2023,Pay Costs,PDTM Directorate,Alexander Mann Solutions Limited,2944885,736.60,Not Applicable
"Department for Science, Innovation and Technology",Intellectual Property Office,29/12/2023,Pay Costs,DDaT Directorate,Alexander Mann Solutions Limited,2944886,"4,003.56",Not Applicable
"Department for Science, Innovation and Technology",Intellectual Property Office,29/12/2023,Pay Costs,DDaT Directorate,Alexander Mann Solutions Limited,2944887,"3,465.30",Not Applicable
"Department for Science, Innovation and Technology",Intellectual Property Office,29/12/2023,Pay Costs,DDaT Directorate,Alexander Mann Solutions Limited,2944888,"4,431.36",Not Applicable
"Department for Science, Innovation and Technology",Intellectual Property Office,29/12/2023,Pay Costs,PDTM Directorate,Alexander Mann Solutions Limited,2944889,597.24,Not Applicable
"Department for Science, Innovation and Technology",Intellectual Property Office,29/12/2023,Pay Costs,PDTM Directorate,Alexander Mann Solutions Limited,2944890,685.98,Not Applicable
"Department for Science, Innovation and Technology",Intellectual Property Office,29/12/2023,Pay Costs,PDTM Directorate,Alexander Mann Solutions Limited,2944891,597.24,Not Applicable
"Department for Science, Innovation and Technology",Intellectual Property Office,29/12/2023,Pay Costs,PDTM Directorate,Alexander Mann Solutions Limited,2944892,736.60,Not Applicable
"Department for Science, Innovation and Technology",Intellectual Property Office,29/12/2023,Pay Costs,PDTM Directorate,Alexander Mann Solutions Limited,2944893,736.60,Not Applicable
"Department for Science, Innovation and Technology",Intellectual Property Office,29/12/2023,Pay Costs,PDTM Directorate,Alexander Mann Solutions Limited,2944894,"1,413.47",Not Applicable
"Department for Science, Innovation and Technology",Intellectual Property Office,29/12/2023,Pay Costs,PDTM Directorate,Alexander Mann Solutions Limited,2944895,736.60,Not Applicable
"Department for Science, Innovation and Technology",Intellectual Property Office,29/12/2023,Pay Costs,PDTM Directorate,Alexander Mann Solutions Limited,2944897,685.98,Not Applicable
"Department for Science, Innovation and Technology",Intellectual Property Office,29/12/2023,Pay Costs,PDTM Directorate,Alexander Mann Solutions Limited,2944899,"1,026.50",Not Applicable
"Department for Science, Innovation and Technology",Intellectual Property Office,29/12/2023,Pay Costs,PDTM Directorate,Alexander Mann Solutions Limited,2944900,597.24,Not Applicable
"Department for Science, Innovation and Technology",Intellectual Property Office,29/12/2023,Pay Costs,PDTM Directorate,Alexander Mann Solutions Limited,2944901,655.34,Not Applicable
"Department for Science, Innovation and Technology",Intellectual Property Office,29/12/2023,Pay Costs,PDTM Directorate,Alexander Mann Solutions Limited,2944902,587.29,Not Applicable
"Department for Science, Innovation and Technology",Intellectual Property Office,29/12/2023,Pay Costs,PDTM Directorate,Alexander Mann Solutions Limited,2944904,736.60,Not Applicable
"Department for Science, Innovation and Technology",Intellectual Property Office,29/12/2023,Pay Costs,PDTM Directorate,Alexander Mann Solutions Limited,2944905,597.24,Not Applicable
"Department for Science, Innovation and Technology",Intellectual Property Office,29/12/2023,Pay Costs,PDTM Directorate,Alexander Mann Solutions Limited,2944906,736.60,Not Applicable
"Department for Science, Innovation and Technology",Intellectual Property Office,29/12/2023,Pay Costs,DDaT Directorate,Alexander Mann Solutions Limited,2944907,"3,326.03",Not Applicable
"Department for Science, Innovation and Technology",Intellectual Property Office,29/12/2023,Pay Costs,PDTM Directorate,Alexander Mann Solutions Limited,2944908,597.24,Not Applicable
"Department for Science, Innovation and Technology",Intellectual Property Office,29/12/2023,Pay Costs,PDTM Directorate,Alexander Mann Solutions Limited,2944909,736.60,Not Applicable
"Department for Science, Innovation and Technology",Intellectual Property Office,29/12/2023,Pay Costs,DDaT Directorate,Alexander Mann Solutions Limited,2944910,"2,309.76",Not Applicable
"Department for Science, Innovation and Technology",Intellectual Property Office,29/12/2023,Pay Costs,PDTM Directorate,Alexander Mann Solutions Limited,2944911,"1,743.42",Not Applicable
"Department for Science, Innovation and Technology",Intellectual Property Office,29/12/2023,Pay Costs,PDTM Directorate,Alexander Mann Solutions Limited,2944912,655.34,Not Applicable
"Department for Science, Innovation and Technology",Intellectual Property Office,29/12/2023,Pay Costs,PDTM Directorate,Alexander Mann Solutions Limited,2944913,736.60,Not Applicable
"Department for Science, Innovation and Technology",Intellectual Property Office,29/12/2023,Pay Costs,PDTM Directorate,Alexander Mann Solutions Limited,2944914,736.60,Not Applicable
"Department for Science, Innovation and Technology",Intellectual Property Office,29/12/2023,Pay Costs,PDTM Directorate,Alexander Mann Solutions Limited,2944915,736.60,Not Applicable
"Department for Science, Innovation and Technology",Intellectual Property Office,29/12/2023,Pay Costs,PDTM Directorate,Alexander Mann Solutions Limited,2944917,676.87,Not Applicable
"Department for Science, Innovation and Technology",Intellectual Property Office,29/12/2023,Pay Costs,PDTM Directorate,Alexander Mann Solutions Limited,2944918,531.36,Not Applicable
"Department for Science, Innovation and Technology",Intellectual Property Office,29/12/2023,Pay Costs,PDTM Directorate,Alexander Mann Solutions Limited,2944919,736.60,Not Applicable
"Department for Science, Innovation and Technology",Intellectual Property Office,29/12/2023,Pay Costs,DDaT Directorate,Alexander Mann Solutions Limited,2944920,"2,710.08",Not Applicable
"Department for Science, Innovation and Technology",Intellectual Property Office,29/12/2023,Pay Costs,DDaT Directorate,Alexander Mann Solutions Limited,2944921,"3,216.12",Not Applicable
"Department for Science, Innovation and Technology",Intellectual Property Office,29/12/2023,Pay Costs,PDTM Directorate,Alexander Mann Solutions Limited,2944922,685.98,Not Applicable
"Department for Science, Innovation and Technology",Intellectual Property Office,29/12/2023,Pay Costs,PDTM Directorate,Alexander Mann Solutions Limited,2944923,"1,523.99",Not Applicable
"Department for Science, Innovation and Technology",Intellectual Property Office,29/12/2023,Pay Costs,DDaT Directorate,Alexander Mann Solutions Limited,2944924,"1,464.37",Not Applicable
"Department for Science, Innovation and Technology",Intellectual Property Office,29/12/2023,Pay Costs,DDaT Directorate,Alexander Mann Solutions Limited,2944925,"3,913.56",Not Applicable
"Department for Science, Innovation and Technology",Intellectual Property Office,29/12/2023,Pay Costs,PDTM Directorate,Alexander Mann Solutions Limited,2944926,736.60,Not Applicable
"Department for Science, Innovation and Technology",Intellectual Property Office,29/12/2023,Pay Costs,Finance Directorate,Alexander Mann Solutions Limited,2944927,736.60,Not Applicable
"Department for Science, Innovation and Technology",Intellectual Property Office,29/12/2023,Pay Costs,DDaT Directorate,Alexander Mann Solutions Limited,2944928,"4,095.36",Not Applicable
"Department for Science, Innovation and Technology",Intellectual Property Office,29/12/2023,Pay Costs,Projects,Alexander Mann Solutions Limited,2944930,"4,725.42",Not Applicable
"Department for Science, Innovation and Technology",Intellectual Property Office,29/12/2023,Pay Costs,PDTM Directorate,Alexander Mann Solutions Limited,2944931,656.96,Not Applicable
"Department for Science, Innovation and Technology",Intellectual Property Office,29/12/2023,Pay Costs,Projects,Alexander Mann Solutions Limited,2944932,"3,350.64",Not Applicable
"Department for Science, Innovation and Technology",Intellectual Property Office,29/12/2023,Pay Costs,Projects,Alexander Mann Solutions Limited,2944933,"2,999.70",Not Applicable
"Department for Science, Innovation and Technology",Intellectual Property Office,29/12/2023,Pay Costs,Projects,Alexander Mann Solutions Limited,2944935,"4,410.42",Not Applicable
"Department for Science, Innovation and Technology",Intellectual Property Office,29/12/2023,Pay Costs,PDTM Directorate,Alexander Mann Solutions Limited,2944937,597.24,Not Applicable
"Department for Science, Innovation and Technology",Intellectual Property Office,29/12/2023,Pay Costs,DDaT Directorate,Alexander Mann Solutions Limited,2944940,"4,158.36",Not Applicable
"Department for Science, Innovation and Technology",Intellectual Property Office,29/12/2023,Pay Costs,Projects,Alexander Mann Solutions Limited,2944941,"4,311.54",Not Applicable
"Department for Science, Innovation and Technology",Intellectual Property Office,29/12/2023,Pay Costs,DDaT Directorate,Alexander Mann Solutions Limited,2944942,"8,931.00",Not Applicable
"Department for Science, Innovation and Technology",Intellectual Property Office,29/12/2023,Pay Costs,PDTM Directorate,Alexander Mann Solutions Limited,2944943,736.60,Not Applicable
"Department for Science, Innovation and Technology",Intellectual Property Office,29/12/2023,Pay Costs,PDTM Directorate,Alexander Mann Solutions Limited,2944944,736.60,Not Applicable
"Department for Science, Innovation and Technology",Intellectual Property Office,29/12/2023,Pay Costs,PDTM Directorate,Alexander Mann Solutions Limited,2944946,736.60,Not Applicable
"Department for Science, Innovation and Technology",Intellectual Property Office,29/12/2023,Pay Costs,PDTM Directorate,Alexander Mann Solutions Limited,2944947,736.60,Not Applicable
"Department for Science, Innovation and Technology",Intellectual Property Office,29/12/2023,Pay Costs,PDTM Directorate,Alexander Mann Solutions Limited,2944948,736.60,Not Applicable
"Department for Science, Innovation and Technology",Intellectual Property Office,29/12/2023,Pay Costs,PDTM Directorate,Alexander Mann Solutions Limited,2944949,736.60,Not Applicable
"Department for Science, Innovation and Technology",Intellectual Property Office,29/12/2023,Pay Costs,"Rights, Policy & Enforcement Directorate",Alexander Mann Solutions Limited,2944950,685.98,Not Applicable
"Department for Science, Innovation and Technology",Intellectual Property Office,29/12/2023,Pay Costs,PDTM Directorate,Alexander Mann Solutions Limited,2944951,736.60,Not Applicable
"Department for Science, Innovation and Technology",Intellectual Property Office,29/12/2023,Pay Costs,PDTM Directorate,Alexander Mann Solutions Limited,2944952,696.78,Not Applicable
"Department for Science, Innovation and Technology",Intellectual Property Office,29/12/2023,Pay Costs,PDTM Directorate,Alexander Mann Solutions Limited,2944953,786.37,Not Applicable
"Department for Science, Innovation and Technology",Intellectual Property Office,29/12/2023,Pay Costs,PDTM Directorate,Alexander Mann Solutions Limited,2944954,736.60,Not Applicable
"Department for Science, Innovation and Technology",Intellectual Property Office,29/12/2023,Pay Costs,PDTM Directorate,Alexander Mann Solutions Limited,2944955,736.60,Not Applicable
"Department for Science, Innovation and Technology",Intellectual Property Office,29/12/2023,Pay Costs,DDaT Directorate,Alexander Mann Solutions Limited,2944956,"3,024.30",Not Applicable
"Department for Science, Innovation and Technology",Intellectual Property Office,29/12/2023,Pay Costs,DDaT Directorate,Alexander Mann Solutions Limited,2944957,"7,875.72",Not Applicable
"Department for Science, Innovation and Technology",Intellectual Property Office,29/12/2023,Pay Costs,PDTM Directorate,Alexander Mann Solutions Limited,2944958,736.60,Not Applicable
"Department for Science, Innovation and Technology",Intellectual Property Office,06/12/2023,Pay Costs,PDTM Directorate,Alexander Mann Solutions Limited,41155,-661.94,Not Applicable
"Department for Science, Innovation and Technology",Intellectual Property Office,29/12/2023,Pay Costs,PDTM Directorate,Alexander Mann Solutions Limited,41402,-676.87,Not Applicable
"Department for Science, Innovation and Technology",Intellectual Property Office,29/12/2023,Pay Costs,PDTM Directorate,Alexander Mann Solutions Limited,41403,-736.60,Not Applicable
"Department for Science, Innovation and Technology",Intellectual Property Office,29/12/2023,Pay Costs,PDTM Directorate,Alexander Mann Solutions Limited,41404,-519.12,Not Applicable
"Department for Science, Innovation and Technology",Intellectual Property Office,06/12/2023,Information Technology,DDaT Directorate,Cyberis Limited,INV02927,"31,299.84",Not Applicable
"Department for Science, Innovation and Technology",Intellectual Property Office,19/12/2023,Staff Costs,"Rights, Policy & Enforcement Directorate",Eliesha Training Ltd,23937,"1,074.00",Not Applicable
"Department for Science, Innovation and Technology",Intellectual Property Office,22/12/2023,Staff Costs,"Rights, Policy & Enforcement Directorate",Eliesha Training Ltd,23938,834.00,Not Applicable
"Department for Science, Innovation and Technology",Intellectual Property Office,13/12/2023,Staff Costs,"Rights, Policy & Enforcement Directorate",TOTALJOBS GROUP LTD,86475870,"1,500.00",Not Applicable
"Department for Science, Innovation and Technology",Intellectual Property Office,20/12/2023,Information Technology,Projects,Empyrean Digital Ltd,EMP-890,"210,751.20",Not Applicable
"Department for Science, Innovation and Technology",Intellectual Property Office,20/12/2023,Information Technology,Projects,Empyrean Digital Ltd,EMP-891,"18,666.00",Not Applicable
"Department for Science, Innovation and Technology",Intellectual Property Office,20/12/2023,Information Technology,Projects,Empyrean Digital Ltd,EMP-892,"19,514.40",Not Applicable
"Department for Science, Innovation and Technology",Intellectual Property Office,15/12/2023,Miscellaneous Expenses General,"Rights, Policy & Enforcement Directorate",Health Management Limited,INV549012,731.38,Not Applicable
"Department for Science, Innovation and Technology",Intellectual Property Office,22/12/2023,Information Technology,"Rights, Policy & Enforcement Directorate",Menace Management Ltd,METADATAKPI/DEC2,"10,200.00",Not Applicable
"Department for Science, Innovation and Technology",Intellectual Property Office,19/12/2023,Information Technology,"Rights, Policy & Enforcement Directorate",Menace Management Ltd,METADATAKPI2/1,"3,600.00",Not Applicable
"Department for Science, Innovation and Technology",Intellectual Property Office,19/12/2023,Information Technology,"Rights, Policy & Enforcement Directorate",Menace Management Ltd,METADATAKPIDEC2/,"5,200.00",Not Applicable
"Department for Science, Innovation and Technology",Intellectual Property Office,20/12/2023,Miscellaneous Expenses General,Strategy Directorate,The Welshman's Lunch,4889,550.00,Not Applicable
"Department for Science, Innovation and Technology",Intellectual Property Office,19/12/2023,Accommodation,"Rights, Policy & Enforcement Directorate",Perfect Circle JV Ltd,31933,"1,037.17",Not Applicable
"Department for Science, Innovation and Technology",Intellectual Property Office,22/12/2023,Accommodation,"Rights, Policy & Enforcement Directorate",Perfect Circle JV Ltd,32966,"7,837.49",Not Applicable
"Department for Science, Innovation and Technology",Intellectual Property Office,21/12/2023,Information Technology,DDaT Directorate,Cloudflare Inc,CI-222493,"10,051.18",Not Applicable
"Department for Science, Innovation and Technology",Intellectual Property Office,21/12/2023,Information Technology,DDaT Directorate,Cloudflare Inc,CI-225817,"10,051.18",Not Applicable
"Department for Science, Innovation and Technology",Intellectual Property Office,22/12/2023,Supporting UK Business,PDTM Directorate,Panoramix Limited,INV-1492,"2,500.00",Not Applicable
"Department for Science, Innovation and Technology",Intellectual Property Office,06/12/2023,Staff Costs,DDaT Directorate,STEM RETURNERS T/A as Marine People Ltd,INV-534506,"12,600.00",Not Applicable
"Department for Science, Innovation and Technology",Intellectual Property Office,22/12/2023,Miscellaneous Expenses General,"Rights, Policy & Enforcement Directorate",MHR International UK Ltd,SIN196694,"22,341.60",Not Applicable
"Department for Science, Innovation and Technology",Intellectual Property Office,22/12/2023,Staff Costs,DDaT Directorate,Hut Six Security Limited,IPO005,"28,704.00",Not Applicable
"Department for Science, Innovation and Technology",Intellectual Property Office,13/12/2023,Supporting UK Business,PDTM Directorate,Page White & Farrer Limited,286347,"2,500.00",Not Applicable
"Department for Science, Innovation and Technology",Intellectual Property Office,15/12/2023,Supporting UK Business,PDTM Directorate,IK-IP Ltd,1372,"2,500.00",Not Applicable
"Department for Science, Innovation and Technology",Intellectual Property Office,06/12/2023,Miscellaneous Expenses General,"Rights, Policy & Enforcement Directorate",Sharon Bodman,8,525.00,Not Applicable
"Department for Science, Innovation and Technology",Intellectual Property Office,12/12/2023,Pay Costs,Projects,Allen Lane LTD,1258152,"4,380.00",Not Applicable
"Department for Science, Innovation and Technology",Intellectual Property Office,12/12/2023,Pay Costs,DDaT Directorate,Allen Lane LTD,1258153,"4,560.00",Not Applicable
"Department for Science, Innovation and Technology",Intellectual Property Office,15/12/2023,Pay Costs,Projects,Allen Lane LTD,1258565,"4,380.00",Not Applicable
"Department for Science, Innovation and Technology",Intellectual Property Office,22/12/2023,Pay Costs,Projects,Allen Lane LTD,1258947,"4,380.00",Not Applicable
"Department for Science, Innovation and Technology",Intellectual Property Office,19/12/2023,Supporting UK Business,PDTM Directorate,Mathys & Squire Consulting Ltd,INV-11557,"2,500.00",Not Applicable
"Department for Science, Innovation and Technology",Intellectual Property Office,12/12/2023,Supporting UK Business,PDTM Directorate,Mathys & Squire Consulting Ltd,INV-11559,"2,500.00",Not Applicable
"Department for Science, Innovation and Technology",Intellectual Property Office,22/12/2023,Staff Costs,DDaT Directorate,David Lynas Consulting Limited,INV-WC-2059,"6,216.00",Not Applicable
"Department for Science, Innovation and Technology",Intellectual Property Office,13/12/2023,Information Technology,Finance Directorate,DocuSign Inc,1.111E+11,"3,933.00",Not Applicable
"Department for Science, Innovation and Technology",Intellectual Property Office,21/12/2023,Misc Expenses Finance,Finance Directorate,Worldpay,283633524,"191,424.98",Not Applicable
"Department for Science, Innovation and Technology",Intellectual Property Office,21/12/2023,Misc Expenses Finance,Finance Directorate,Worldpay,GM1104080,947.02,Not Applicable
"Department for Science, Innovation and Technology",Intellectual Property Office,12/12/2023,Staff Costs,"Rights, Policy & Enforcement Directorate",Be Applied Ltd,INV-1963,"1,716.00",Not Applicable
"Department for Science, Innovation and Technology",Intellectual Property Office,04/12/2023,Pay Costs,DDaT Directorate,Talent International Holdings PTY Limite,67267,"14,400.00",Not Applicable
"Department for Science, Innovation and Technology",Intellectual Property Office,04/12/2023,Pay Costs,DDaT Directorate,Talent International Holdings PTY Limite,67268,"6,840.00",Not Applicable
"Department for Science, Innovation and Technology",Intellectual Property Office,05/12/2023,Pay Costs,Projects,Talent International Holdings PTY Limite,67269,"17,352.00",Not Applicable
"Department for Science, Innovation and Technology",Intellectual Property Office,13/12/2023,Pay Costs,DDaT Directorate,Talent International Holdings PTY Limite,67350,"14,400.00",Not Applicable
"Department for Science, Innovation and Technology",Intellectual Property Office,08/12/2023,Pay Costs,"Rights, Policy & Enforcement Directorate",Edenred,1184684,"29,305.00",Not Applicable
"Department for Science, Innovation and Technology",Intellectual Property Office,08/12/2023,Supporting UK Business,PDTM Directorate,Edenred,1184684,90.00,Not Applicable
"Department for Science, Innovation and Technology",Intellectual Property Office,22/12/2023,Legal & Hearings,PDTM Directorate,Mills and Reeve LLP,235625,"1,305.29",Not Applicable
"Department for Science, Innovation and Technology",Intellectual Property Office,15/12/2023,Accommodation,"Rights, Policy & Enforcement Directorate",TotalEnergies Gas & Power,323827784/23,"13,380.86",Not Applicable
"Department for Science, Innovation and Technology",Intellectual Property Office,15/12/2023,Accommodation,"Rights, Policy & Enforcement Directorate",TotalEnergies Gas & Power,323827806/23,"6,239.26",Not Applicable
"Department for Science, Innovation and Technology",Intellectual Property Office,29/12/2023,Information Technology,DDaT Directorate,Informatica Software Ltd,10003275,"95,998.80",Not Applicable
"Department for Science, Innovation and Technology",Intellectual Property Office,13/12/2023,Marketing & Publicity,Strategy Directorate,Reputation (RI) UK Ltd t/a The Rep Trak,90891,"19,200.00",Not Applicable
"Department for Science, Innovation and Technology",Intellectual Property Office,08/12/2023,Office Machinery,DDaT Directorate,Annodata Limited T/A Kyocera,1336973,"5,569.46",Not Applicable
"Department for Science, Innovation and Technology",Intellectual Property Office,11/12/2023,Miscellaneous Expenses General,PDTM Directorate,Centre for Assessment Ltd,6091892,"3,150.00",Not Applicable
"Department for Science, Innovation and Technology",Intellectual Property Office,06/12/2023,Pay Costs,Projects,JobSpec Limited,JS-759164,"3,918.00",Not Applicable
"Department for Science, Innovation and Technology",Intellectual Property Office,06/12/2023,Pay Costs,DDaT Directorate,JobSpec Limited,JS-759165,"4,440.00",Not Applicable
"Department for Science, Innovation and Technology",Intellectual Property Office,11/12/2023,Pay Costs,Projects,JobSpec Limited,JS-759166,"3,918.00",Not Applicable
"Department for Science, Innovation and Technology",Intellectual Property Office,11/12/2023,Pay Costs,DDaT Directorate,JobSpec Limited,JS-759167,"4,440.00",Not Applicable
"Department for Science, Innovation and Technology",Intellectual Property Office,15/12/2023,Pay Costs,Projects,JobSpec Limited,JS-759168,"3,918.00",Not Applicable
"Department for Science, Innovation and Technology",Intellectual Property Office,15/12/2023,Pay Costs,DDaT Directorate,JobSpec Limited,JS-759169,"4,440.00",Not Applicable
"Department for Science, Innovation and Technology",Intellectual Property Office,22/12/2023,Pay Costs,Projects,JobSpec Limited,JS-759170,"3,918.00",Not Applicable
"Department for Science, Innovation and Technology",Intellectual Property Office,22/12/2023,Pay Costs,DDaT Directorate,JobSpec Limited,JS-759171,"4,440.00",Not Applicable
"Department for Science, Innovation and Technology",Intellectual Property Office,04/12/2023,Staff Costs,"Rights, Policy & Enforcement Directorate",The Queen Elizabeth II Conference Centre,20739,"1,102.80",Not Applicable
"Department for Science, Innovation and Technology",Intellectual Property Office,12/12/2023,Supporting UK Business,"Rights, Policy & Enforcement Directorate",Barley Communications Limited,1480,"36,180.00",Not Applicable
"Department for Science, Innovation and Technology",Intellectual Property Office,11/12/2023,Office Machinery,"Rights, Policy & Enforcement Directorate",Peac Uk Ltd,006/24/0113342,"1,380.00",Not Applicable
"Department for Science, Innovation and Technology",Intellectual Property Office,11/12/2023,Pay Costs,DDaT Directorate,Interquest Group UK Limited,218776,"23,993.64",Not Applicable
"Department for Science, Innovation and Technology",Intellectual Property Office,22/12/2023,Pay Costs,"Rights, Policy & Enforcement Directorate",PCC for Merseyside,304422,"25,293.59",Not Applicable
"Department for Science, Innovation and Technology",Intellectual Property Office,22/12/2023,Staff Costs,"Rights, Policy & Enforcement Directorate",Political Engagement Ltd,SI-PE001617,"1,770.00",Not Applicable
"Department for Science, Innovation and Technology",Intellectual Property Office,29/12/2023,Staff Costs,"Rights, Policy & Enforcement Directorate",Political Engagement Ltd,SI-PE001761,"1,422.00",Not Applicable
"Department for Science, Innovation and Technology",Intellectual Property Office,11/12/2023,Accommodation,"Rights, Policy & Enforcement Directorate",Crown Flooring Ltd,37847,"1,275.96",Not Applicable
"Department for Science, Innovation and Technology",Intellectual Property Office,08/12/2023,Accommodation,"Rights, Policy & Enforcement Directorate",Crown Flooring Ltd,37851,"21,685.01",Not Applicable
"Department for Science, Innovation and Technology",Intellectual Property Office,08/12/2023,Accommodation,"Rights, Policy & Enforcement Directorate",Crown Flooring Ltd,37853,750.37,Not Applicable
"Department for Science, Innovation and Technology",Intellectual Property Office,04/12/2023,Supporting UK Business,Business & International Policy Directorate,Tom Pengelly,2,600.00,Not Applicable
"Department for Science, Innovation and Technology",Intellectual Property Office,08/12/2023,Staff Costs,DDaT Directorate,Code First Girls Ltd,INV-0094,"35,700.00",Not Applicable
"Department for Science, Innovation and Technology",Intellectual Property Office,05/12/2023,Staff Costs,"Rights, Policy & Enforcement Directorate",The Carbon Literacy Trust,INV-4016,"1,200.00",Not Applicable
"Department for Science, Innovation and Technology",Intellectual Property Office,05/12/2023,Staff Costs,"Rights, Policy & Enforcement Directorate",The Carbon Literacy Trust,SCN-4094,"-1,000.00",Not Applicable
"Department for Science, Innovation and Technology",Intellectual Property Office,05/12/2023,Miscellaneous Expenses General,Strategy Directorate,Personal expenses,UKIPO-1,"17,000.00",Not Applicable
"Department for Science, Innovation and Technology",Intellectual Property Office,22/12/2023,Accommodation,"Rights, Policy & Enforcement Directorate",ISS Mediclean Limited,SI3572000,"109,289.41",Not Applicable
"Department for Science, Innovation and Technology",Intellectual Property Office,22/12/2023,Accommodation,"Rights, Policy & Enforcement Directorate",ISS Mediclean Limited,SI3572000,"28,962.82",Not Applicable
"Department for Science, Innovation and Technology",Intellectual Property Office,22/12/2023,Accommodation,"Rights, Policy & Enforcement Directorate",ISS Mediclean Limited,SI3572001,"109,289.41",Not Applicable
"Department for Science, Innovation and Technology",Intellectual Property Office,22/12/2023,Accommodation,"Rights, Policy & Enforcement Directorate",ISS Mediclean Limited,SI3572001,"28,962.82",Not Applicable
"Department for Science, Innovation and Technology",Intellectual Property Office,15/12/2023,Supporting UK Business,PDTM Directorate,Wollen Michelmore LLP t/a Wollens,119854,"2,500.00",Not Applicable
"Department for Science, Innovation and Technology",Intellectual Property Office,20/12/2023,Staff Costs,PDTM Directorate,QN Hotels Ltd t/a Holiday Inn Newport,2023017412,"6,144.00",Not Applicable
"Department for Science, Innovation and Technology",Intellectual Property Office,28/12/2023,Office Stationery,"Rights, Policy & Enforcement Directorate",Oak Furnitureland Group L,H57720231230ghrboohsq,84.98,Not Applicable
"Department for Science, Innovation and Technology",Intellectual Property Office,27/12/2023,Career Development Services,"Rights, Policy & Enforcement Directorate",Help.Skillshare.Com,H57720231229ruhtpwpne,79.00,Not Applicable
"Department for Science, Innovation and Technology",Intellectual Property Office,27/12/2023,Office Stationery,"Rights, Policy & Enforcement Directorate",Dunelm Softfurnishings,H57720231229watjfwyut,115.20,Not Applicable
"Department for Science, Innovation and Technology",Intellectual Property Office,22/12/2023,Office Stationery,"Rights, Policy & Enforcement Directorate",Amazon.Co.Uk,H57720231227rullugrvl,63.85,Not Applicable
"Department for Science, Innovation and Technology",Intellectual Property Office,21/12/2023,Office Stationery,"Rights, Policy & Enforcement Directorate",Ikea Ltd Shop Online,H57720231223hngijvpqk,90.00,Not Applicable
"Department for Science, Innovation and Technology",Intellectual Property Office,21/12/2023,Perpetual Licences,DDaT Directorate,Namesco,H57720231223mgycepfbu,104.38,Not Applicable
"Department for Science, Innovation and Technology",Intellectual Property Office,21/12/2023,Career Development Services,"Rights, Policy & Enforcement Directorate",Bbc Maestro,H57720231223necniqijh,72.00,Not Applicable
"Department for Science, Innovation and Technology",Intellectual Property Office,21/12/2023,Office Stationery,"Rights, Policy & Enforcement Directorate",Ikea Ltd Shop Online,H57720231223xlpoxrdml,295.00,Not Applicable
"Department for Science, Innovation and Technology",Intellectual Property Office,21/12/2023,Other,"Rights, Policy & Enforcement Directorate",Executivegrapevine,H57720231223xmtglitwp,27.99,Not Applicable
"Department for Science, Innovation and Technology",Intellectual Property Office,19/12/2023,Overseas Patent Specifications,PDTM Directorate,Wiley,H57720231222abtihugoi,39.96,Not Applicable
"Department for Science, Innovation and Technology",Intellectual Property Office,20/12/2023,Career Development Services,"Rights, Policy & Enforcement Directorate",Bbc Maestro,H57720231222eskypjmqf,72.00,Not Applicable
"Department for Science, Innovation and Technology",Intellectual Property Office,20/12/2023,Career Development Services,"Rights, Policy & Enforcement Directorate",Bbc Maestro,H57720231222iujevjmrx,36.00,Not Applicable
"Department for Science, Innovation and Technology",Intellectual Property Office,20/12/2023,Career Development Services,Finance Directorate,Vivatuition.Com,H57720231222mdceglzmb,299.00,Not Applicable
"Department for Science, Innovation and Technology",Intellectual Property Office,19/12/2023,Perpetual Licences,DDaT Directorate,Digicert,H57720231222opxmxlpis,746.90,Not Applicable
"Department for Science, Innovation and Technology",Intellectual Property Office,20/12/2023,Overseas Patent Specifications,PDTM Directorate,Nature Article Pdf,H57720231222qhsjpdmjq,39.06,Not Applicable
"Department for Science, Innovation and Technology",Intellectual Property Office,20/12/2023,Office Stationery,"Rights, Policy & Enforcement Directorate",Amznmktplace,H57720231222uzxssijuq,140.33,Not Applicable
"Department for Science, Innovation and Technology",Intellectual Property Office,20/12/2023,Career Development Services,"Rights, Policy & Enforcement Directorate",Bbc Maestro,H57720231222wpshbpedh,72.00,Not Applicable
"Department for Science, Innovation and Technology",Intellectual Property Office,20/12/2023,Career Development Services,"Rights, Policy & Enforcement Directorate",Bbc Maestro,H57720231222yavfrpccq,72.00,Not Applicable
"Department for Science, Innovation and Technology",Intellectual Property Office,19/12/2023,Minor Works-Goods,"Rights, Policy & Enforcement Directorate",Brewers,H57720231221ldguerfck,313.68,Not Applicable
"Department for Science, Innovation and Technology",Intellectual Property Office,19/12/2023,Books,Strategy Directorate,Amazon.Co.Uk,H57720231221zbdwldors,29.80,Not Applicable
"Department for Science, Innovation and Technology",Intellectual Property Office,18/12/2023,Overseas Patent Specifications,PDTM Directorate,Bentham Science Pub Fzc,H57720231220ipcguvbif,52.84,Not Applicable
"Department for Science, Innovation and Technology",Intellectual Property Office,15/12/2023,Minor Works-Goods,"Rights, Policy & Enforcement Directorate",Newey & Eyre,H57720231220rzporjvxx,267.34,Not Applicable
"Department for Science, Innovation and Technology",Intellectual Property Office,14/12/2023,Legal Consultancy,DDaT Directorate,Ipo,H57720231219cfidyggic,50.00,Not Applicable
"Department for Science, Innovation and Technology",Intellectual Property Office,17/12/2023,Office Stationery,"Rights, Policy & Enforcement Directorate",Amznmktplace,H57720231219eqehlupyn,20.98,Not Applicable
"Department for Science, Innovation and Technology",Intellectual Property Office,15/12/2023,Overseas Patent Specifications,PDTM Directorate,Nature Article Pdf,H57720231219fxlhsghvl,39.16,Not Applicable
"Department for Science, Innovation and Technology",Intellectual Property Office,15/12/2023,Office Stationery,"Rights, Policy & Enforcement Directorate",Amznmktplace,H57720231219gpvremqdb,271.90,Not Applicable
"Department for Science, Innovation and Technology",Intellectual Property Office,15/12/2023,Office Stationery,"Rights, Policy & Enforcement Directorate",Amznmktplace,H57720231219iomhjorxl,15.95,Not Applicable
"Department for Science, Innovation and Technology",Intellectual Property Office,14/12/2023,Legal Consultancy,DDaT Directorate,Ipo,H57720231219iyihlduco,-50.00,Not Applicable
"Department for Science, Innovation and Technology",Intellectual Property Office,15/12/2023,Office Stationery,"Rights, Policy & Enforcement Directorate",Amznmktplace,H57720231219jovkchhgg,21.98,Not Applicable
"Department for Science, Innovation and Technology",Intellectual Property Office,16/12/2023,Office Stationery,"Rights, Policy & Enforcement Directorate",Amazon.Co.Uk,H57720231219jsktatiye,25.90,Not Applicable
"Department for Science, Innovation and Technology",Intellectual Property Office,14/12/2023,Overseas Patent Specifications,PDTM Directorate,Wiley,H57720231219odrulfvui,48.61,Not Applicable
"Department for Science, Innovation and Technology",Intellectual Property Office,09/12/2023,Legal Consultancy,DDaT Directorate,Ipo,H57720231219sxthobcxc,-30.00,Not Applicable
"Department for Science, Innovation and Technology",Intellectual Property Office,15/12/2023,Minor Works-Goods,"Rights, Policy & Enforcement Directorate",Www.Argos.Co.Uk,H57720231219zbrdnelwe,233.95,Not Applicable
"Department for Science, Innovation and Technology",Intellectual Property Office,13/12/2023,Overseas Patent Specifications,PDTM Directorate,Wiley,H57720231216dzgtkeqiy,34.56,Not Applicable
"Department for Science, Innovation and Technology",Intellectual Property Office,14/12/2023,Other,"Rights, Policy & Enforcement Directorate",Amznmktplace,H57720231216ehdkjcitk,31.60,Not Applicable
"Department for Science, Innovation and Technology",Intellectual Property Office,13/12/2023,Minor Works-Goods,"Rights, Policy & Enforcement Directorate",Rs Components,H57720231216mjkwqcpvj,330.62,Not Applicable
"Department for Science, Innovation and Technology",Intellectual Property Office,14/12/2023,Career Development Services,"Rights, Policy & Enforcement Directorate",Continuity Shop,H57720231216mksbwysnq,"1,320.00",Not Applicable
"Department for Science, Innovation and Technology",Intellectual Property Office,14/12/2023,Career Development Services,"Rights, Policy & Enforcement Directorate",Avado,H57720231216sdnrseqek,"2,050.00",Not Applicable
"Department for Science, Innovation and Technology",Intellectual Property Office,14/12/2023,Career Development Services,"Rights, Policy & Enforcement Directorate",Continuity Shop,H57720231216soolutzsv,636.00,Not Applicable
"Department for Science, Innovation and Technology",Intellectual Property Office,12/12/2023,Overseas Patent Specifications,PDTM Directorate,Springer Customer Serv,H57720231216ssnozdqzw,34.95,Not Applicable
"Department for Science, Innovation and Technology",Intellectual Property Office,13/12/2023,Entertainment,"Rights, Policy & Enforcement Directorate",Tesco Stores 2931,H57720231215cuviclpul,46.25,Not Applicable
"Department for Science, Innovation and Technology",Intellectual Property Office,13/12/2023,Minor Works-Goods,"Rights, Policy & Enforcement Directorate",Amznmktplace,H57720231215egcinmdfj,241.36,Not Applicable
"Department for Science, Innovation and Technology",Intellectual Property Office,11/11/2023,Legal Consultancy,DDaT Directorate,Ipo,H57720231215ffjqozegc,-30.00,Not Applicable
"Department for Science, Innovation and Technology",Intellectual Property Office,14/11/2023,Legal Consultancy,DDaT Directorate,Ipo,H57720231215fmzfpsxeb,-5.00,Not Applicable
"Department for Science, Innovation and Technology",Intellectual Property Office,13/12/2023,Minor Works-Goods,"Rights, Policy & Enforcement Directorate",Amznmktplace,H57720231215jbavqwdel,241.37,Not Applicable
"Department for Science, Innovation and Technology",Intellectual Property Office,13/12/2023,Network and infrastructure H/W,"Rights, Policy & Enforcement Directorate",Asda Superstore 4928,H57720231215kskuyclmo,16.99,Not Applicable
"Department for Science, Innovation and Technology",Intellectual Property Office,13/12/2023,Other,"Rights, Policy & Enforcement Directorate",Amznmktplace,H57720231215mnlainrbd,13.47,Not Applicable
"Department for Science, Innovation and Technology",Intellectual Property Office,13/12/2023,Minor Works-Goods,"Rights, Policy & Enforcement Directorate",Amznmktplace,H57720231215rvxgjrgce,120.85,Not Applicable
"Department for Science, Innovation and Technology",Intellectual Property Office,14/10/2023,Legal Consultancy,DDaT Directorate,Ipo,H57720231215snpkniuyv,-30.00,Not Applicable
"Department for Science, Innovation and Technology",Intellectual Property Office,15/10/2023,Legal Consultancy,DDaT Directorate,Ipo,H57720231215tlwiwviyq,-30.00,Not Applicable
"Department for Science, Innovation and Technology",Intellectual Property Office,13/12/2023,Network and infrastructure H/W,"Rights, Policy & Enforcement Directorate",Asda Superstore 4928,H57720231215tytnkhrgh,23.25,Not Applicable
"Department for Science, Innovation and Technology",Intellectual Property Office,13/12/2023,Minor Works-Goods,"Rights, Policy & Enforcement Directorate",Amznmktplace,H57720231215vdenxjguo,241.36,Not Applicable
"Department for Science, Innovation and Technology",Intellectual Property Office,14/11/2023,Legal Consultancy,DDaT Directorate,Ipo,H57720231215xcvibtiig,-30.00,Not Applicable
"Department for Science, Innovation and Technology",Intellectual Property Office,12/11/2023,Legal Consultancy,DDaT Directorate,Ipo,H57720231215ygfspzvnp,-30.00,Not Applicable
"Department for Science, Innovation and Technology",Intellectual Property Office,12/12/2023,Overseas Patent Specifications,PDTM Directorate,Wiley,H57720231214cicxuwqxy,34.60,Not Applicable
"Department for Science, Innovation and Technology",Intellectual Property Office,12/12/2023,Office Stationery,"Rights, Policy & Enforcement Directorate",Amazon.Co.Uk,H57720231214cwtcsjtsd,274.71,Not Applicable
"Department for Science, Innovation and Technology",Intellectual Property Office,12/12/2023,Office Stationery,"Rights, Policy & Enforcement Directorate",Www.Screwfix.Com,H57720231214eknbgbjpd,20.00,Not Applicable
"Department for Science, Innovation and Technology",Intellectual Property Office,11/12/2023,Office Stationery,"Rights, Policy & Enforcement Directorate",Halfords 0833,H57720231214qmwibwget,24.06,Not Applicable
"Department for Science, Innovation and Technology",Intellectual Property Office,12/12/2023,Office Stationery,"Rights, Policy & Enforcement Directorate",Amazon.Co.Uk,H57720231214sgqfocntq,78.49,Not Applicable
"Department for Science, Innovation and Technology",Intellectual Property Office,12/12/2023,Career Development Services,DDaT Directorate,The Knowledge Academy,H57720231214yqchqmqdi,"4,801.39",Not Applicable
"Department for Science, Innovation and Technology",Intellectual Property Office,11/12/2023,Education Campaign,PDTM Directorate,Asda Superstore 4928,H57720231213bhaujfsgu,87.00,Not Applicable
"Department for Science, Innovation and Technology",Intellectual Property Office,11/12/2023,Office Stationery,"Rights, Policy & Enforcement Directorate",Amznmktplace,H57720231213clcodckab,41.99,Not Applicable
"Department for Science, Innovation and Technology",Intellectual Property Office,11/12/2023,Office Stationery,"Rights, Policy & Enforcement Directorate",Dunelm Softfurnishings,H57720231213kbrhsxdun,120.00,Not Applicable
"Department for Science, Innovation and Technology",Intellectual Property Office,11/12/2023,Career Development Services,DDaT Directorate,Amznmktplace,H57720231213tmpgclxch,36.23,Not Applicable
"Department for Science, Innovation and Technology",Intellectual Property Office,08/12/2023,Entertainment,"Rights, Policy & Enforcement Directorate",Artivive.Com,H57720231212bsysrfvio,12.29,Not Applicable
"Department for Science, Innovation and Technology",Intellectual Property Office,09/12/2023,Office Stationery,"Rights, Policy & Enforcement Directorate",Amznmktplace,H57720231212ldwldvngl,91.45,Not Applicable
"Department for Science, Innovation and Technology",Intellectual Property Office,09/12/2023,Legal Consultancy,DDaT Directorate,Ipo,H57720231212njcoyedwf,30.00,Not Applicable
"Department for Science, Innovation and Technology",Intellectual Property Office,09/12/2023,Legal Consultancy,DDaT Directorate,Ipo,H57720231212pkphdohdv,170.00,Not Applicable
"Department for Science, Innovation and Technology",Intellectual Property Office,09/12/2023,Legal Consultancy,DDaT Directorate,Ipo,H57720231212pmobpweyy,50.00,Not Applicable
"Department for Science, Innovation and Technology",Intellectual Property Office,07/12/2023,Overseas Patent Specifications,PDTM Directorate,Wiley,H57720231212yzusluffs,48.41,Not Applicable
"Department for Science, Innovation and Technology",Intellectual Property Office,07/12/2023,Minor Works-Goods,"Rights, Policy & Enforcement Directorate",Brewers,H57720231209hxloppxfr,664.18,Not Applicable
"Department for Science, Innovation and Technology",Intellectual Property Office,07/12/2023,Perpetual Licences,DDaT Directorate,Heroku* Nov-89141917,H57720231209kszmfbhuw,4.10,Not Applicable
"Department for Science, Innovation and Technology",Intellectual Property Office,07/12/2023,Minor Works-Goods,"Rights, Policy & Enforcement Directorate",Www.Screwfix.Com,H57720231209lquojxoxn,104.98,Not Applicable
"Department for Science, Innovation and Technology",Intellectual Property Office,07/12/2023,Perpetual Licences,DDaT Directorate,Heroku* Nov-89220995,H57720231209phmfcblbr,5.75,Not Applicable
"Department for Science, Innovation and Technology",Intellectual Property Office,07/12/2023,Career Development Services,DDaT Directorate,Udemy,H57720231209pniyktlai,30.98,Not Applicable
"Department for Science, Innovation and Technology",Intellectual Property Office,07/12/2023,Network and infrastructure H/W,DDaT Directorate,Meetingstore.Co.Uk,H57720231209rhgahccsb,60.65,Not Applicable
"Department for Science, Innovation and Technology",Intellectual Property Office,07/12/2023,Office Stationery,"Rights, Policy & Enforcement Directorate",Amazon.Co.Uk,H57720231209rrrhplgii,13.99,Not Applicable
"Department for Science, Innovation and Technology",Intellectual Property Office,07/12/2023,Network and infrastructure H/W,DDaT Directorate,Www.Avpartmaster.Net,H57720231209skcjuvnyw,861.79,Not Applicable
"Department for Science, Innovation and Technology",Intellectual Property Office,07/12/2023,Overseas Patent Specifications,PDTM Directorate,Cambridge University Pres,H57720231209wqnduztht,26.00,Not Applicable
"Department for Science, Innovation and Technology",Intellectual Property Office,06/12/2023,Office Stationery,"Rights, Policy & Enforcement Directorate",Amznmktplace,H57720231208bxxckgilr,16.89,Not Applicable
"Department for Science, Innovation and Technology",Intellectual Property Office,06/12/2023,Office Stationery,"Rights, Policy & Enforcement Directorate",Amznmktplace,H57720231208gnpxxhbgw,67.98,Not Applicable
"Department for Science, Innovation and Technology",Intellectual Property Office,05/12/2023,Office Stationery,"Rights, Policy & Enforcement Directorate",Sedo,H57720231207aawgjslny,249.00,Not Applicable
"Department for Science, Innovation and Technology",Intellectual Property Office,05/12/2023,Overseas Patent Specifications,PDTM Directorate,Reprints Desk Inc,H57720231207dhkupexmq,32.64,Not Applicable
"Department for Science, Innovation and Technology",Intellectual Property Office,05/12/2023,Entertainment,"Rights, Policy & Enforcement Directorate",The Range,H57720231207docudrcdr,9.56,Not Applicable
"Department for Science, Innovation and Technology",Intellectual Property Office,05/12/2023,Career Development Services,"Rights, Policy & Enforcement Directorate",Asda Superstore 4928,H57720231207ictutsouk,38.80,Not Applicable
"Department for Science, Innovation and Technology",Intellectual Property Office,05/12/2023,Overseas Patent Specifications,PDTM Directorate,Www.Oup.Com,H57720231207lxfjoqwqy,32.00,Not Applicable
"Department for Science, Innovation and Technology",Intellectual Property Office,05/12/2023,Office Stationery,"Rights, Policy & Enforcement Directorate",Dunelm Softfurnishings,H57720231207pkttrcnen,180.00,Not Applicable
"Department for Science, Innovation and Technology",Intellectual Property Office,05/12/2023,Overseas Patent Specifications,PDTM Directorate,Reprints Desk Inc,H57720231207skjdwfsem,45.75,Not Applicable
"Department for Science, Innovation and Technology",Intellectual Property Office,05/12/2023,Network and infrastructure H/W,"Rights, Policy & Enforcement Directorate",Asda Superstore 4928,H57720231207sxmnkncqj,12.35,Not Applicable
"Department for Science, Innovation and Technology",Intellectual Property Office,05/12/2023,Entertainment,"Rights, Policy & Enforcement Directorate",B&m 607 - Newport,H57720231207trdickntw,19.50,Not Applicable
"Department for Science, Innovation and Technology",Intellectual Property Office,05/12/2023,Office Stationery,"Rights, Policy & Enforcement Directorate",Amznmktplace,H57720231207uqpqiztpm,254.79,Not Applicable
"Department for Science, Innovation and Technology",Intellectual Property Office,05/12/2023,Entertainment,"Rights, Policy & Enforcement Directorate",B&m 607 - Newport,H57720231207xndicjwjl,32.00,Not Applicable
"Department for Science, Innovation and Technology",Intellectual Property Office,05/12/2023,Overseas Patent Specifications,PDTM Directorate,Informa UK Ecom Gb,H57720231207xvzduundt,55.20,Not Applicable
"Department for Science, Innovation and Technology",Intellectual Property Office,04/12/2023,Overseas Patent Specifications,PDTM Directorate,Informa UK Ecom Gb,H57720231206cncndeyuz,55.20,Not Applicable
"Department for Science, Innovation and Technology",Intellectual Property Office,04/12/2023,Office Stationery,"Rights, Policy & Enforcement Directorate",Replacement Keys Ltd,H57720231206tlkskysps,12.60,Not Applicable
"Department for Science, Innovation and Technology",Intellectual Property Office,01/12/2023,Entertainment,Strategy Directorate,Le Montmartre,H57720231205ahbirmbss,338.04,Not Applicable
"Department for Science, Innovation and Technology",Intellectual Property Office,01/12/2023,Office Stationery,"Rights, Policy & Enforcement Directorate",Amznmktplace,H57720231205ebnxqasls,209.97,Not Applicable
"Department for Science, Innovation and Technology",Intellectual Property Office,30/11/2023,Minor Works-Goods,"Rights, Policy & Enforcement Directorate",Rs Components,H57720231205fuuqrbcnw,281.03,Not Applicable
"Department for Science, Innovation and Technology",Intellectual Property Office,01/12/2023,Office Stationery,"Rights, Policy & Enforcement Directorate",Amznmktplace,H57720231205hkjwlmtnt,209.97,Not Applicable
"Department for Science, Innovation and Technology",Intellectual Property Office,01/12/2023,Office Stationery,"Rights, Policy & Enforcement Directorate",Amznmktplace,H57720231205ilvrcljig,69.99,Not Applicable
"Department for Science, Innovation and Technology",Intellectual Property Office,02/12/2023,Legal Consultancy,DDaT Directorate,Ipo,H57720231205ilxwrglcs,50.00,Not Applicable
"Department for Science, Innovation and Technology",Intellectual Property Office,03/12/2023,Entertainment,"Rights, Policy & Enforcement Directorate",Aldi 52 780,H57720231205izxqtruho,9.02,Not Applicable
"Department for Science, Innovation and Technology",Intellectual Property Office,01/12/2023,Office Stationery,"Rights, Policy & Enforcement Directorate",Amznmktplace,H57720231205kdvakekdo,209.97,Not Applicable
"Department for Science, Innovation and Technology",Intellectual Property Office,30/11/2023,Perpetual Licences,DDaT Directorate,Dri*,H57720231205ncajkaajt,516.00,Not Applicable
"Department for Science, Innovation and Technology",Intellectual Property Office,03/12/2023,Network and infrastructure H/W,"Rights, Policy & Enforcement Directorate",Costco Wholesale #120,H57720231205tionsswej,20.38,Not Applicable
"Department for Science, Innovation and Technology",Intellectual Property Office,21/11/2023,Legal Consultancy,DDaT Directorate,Ipo,H57720231202abriygduc,-50.00,Not Applicable
"Department for Science, Innovation and Technology",Intellectual Property Office,30/11/2023,Office Stationery,"Rights, Policy & Enforcement Directorate",Toolstation Uk,H57720231202cdngbddzh,124.37,Not Applicable
"Department for Science, Innovation and Technology",Intellectual Property Office,30/11/2023,Office Stationery,"Rights, Policy & Enforcement Directorate",Www.Flags.Co.Uk,H57720231202cvtnqccfg,-81.22,Not Applicable
"Department for Science, Innovation and Technology",Intellectual Property Office,21/11/2023,Legal Consultancy,DDaT Directorate,Ipo,H57720231202ievihbkkn,-170.00,Not Applicable
"Department for Science, Innovation and Technology",Intellectual Property Office,30/11/2023,Minor Works-Goods,"Rights, Policy & Enforcement Directorate",Towergate Prof. Risks,H57720231202kefxelqdw,342.43,Not Applicable
"Department for Science, Innovation and Technology",Intellectual Property Office,30/11/2023,Office Stationery,"Rights, Policy & Enforcement Directorate",Amznmktplace,H57720231202ruhoptkmf,65.98,Not Applicable
"Department for Science, Innovation and Technology",Intellectual Property Office,30/11/2023,Perpetual Licences,DDaT Directorate,Fs *dolphinaccess,H57720231202vbgwsjrdb,"1,392.00",Not Applicable
"Department for Science, Innovation and Technology",Intellectual Property Office,21/11/2023,Legal Consultancy,DDaT Directorate,Ipo,H57720231202viigyxxcu,-30.00,Not Applicable
"Department for Science, Innovation and Technology",Intellectual Property Office,30/11/2023,Perpetual Licences,DDaT Directorate,Prestosoft Llc,H57720231202wqppjbanp,28.45,Not Applicable
"Department for Science, Innovation and Technology",Intellectual Property Office,30/11/2023,Office Stationery,"Rights, Policy & Enforcement Directorate",Amznmktplace,H57720231202yiongbbcp,47.90,Not Applicable
